Workbook

Sheet Cover Page
D1: Add company logo
N2: Version 20.6
B8: Add photo
N13: Notes:
N14: This template may require adjustments by individual operators to meet specific reporting requirements as defined in the site Permit(s)
B29: Annual Performance Report 2021
B31: Permit EPR/GP3433GH
B33: Cornwall Energy Recovery Centre
B37: SUEZ Recycling and Recovery UK Ltd
B39: Year: | C39: 2021
B41: Address: | C41: St Dennis, St Austell, Cornwall, PL26 8DY
B43: Tel: | C43: 07970 233762
B45: Email: | C45: 07970 233762
B47: Prepared by: | C47: Richard Watkins | F47: Position: | G47: EIR Manager
C48: Allan Chapman | G48: Technical Plant Engineer
B50: Approved by: | C50: Tony Burge | F50: Position: | G50: Plant Manager
B52: Version: | C52: 1
B54: Issue Date: | C54: 2022-01-27

Sheet Contents
A1: =+'Cover Page'!$B$29 -> Annual Performance Report 2021 | E1: =+'Cover Page'!$B$33 -> Cornwall Energy Recovery Centre
A3: Contents | K3: Notes:
A4: Section | B4: Subject | H4: Page | K4: Section references and Page nos. to be inserted
B5: Facility Information | K5: Sections and Subjects may require adjustment by individual operators to meet specific reporting requirements as defined in the sites Permit(s)
B6: Operational Summary
B7: Operational Data
B8: Performance Form 1
B9: Energy Form 1
B10: Permit Compliance
B11: Improvements
B12: Public Liasion
B13: Residue Quality - Optional
B14: Emissions to Water
B15: Emissions to Air (periodically monitored)
B16: Emissions to Air (continuously monitored)
B17: Hydrogen Chloride emissions
B18: Sulphur Dioxdie emsissions
B19: Oxides of Nitrogen emissions
B20: Total Organic Carbon emissions
B21: Particulate Matter emissions
B22: Carbon Monoxide emissions
B23: Hydrogen Fluoride emissions
B24: Ammonia emissions
A26: Version Control
A27: Section | B27: Information | H27: Date
A34: Distribution
A35: Copy | B35: Name, Role | H35: No.
A36: 1 | B36: Site Operations Team
A37: 2 | B37: Environment & Industrial Risk Team
A38: 3 | B38: Environment Agency
A44: This report is required under the Industrial Emissions Directive’s Article 55(2) requirements on reporting and public information on waste incineration plants and co-incineration plants, which require the operator to produce an annual report on the functioning and monitoring of the plant and make it available to the public.

Sheet Facility Info
A1: =+'Cover Page'!$B$29 -> Annual Performance Report 2021 | E1: =+'Cover Page'!$B$33 -> Cornwall Energy Recovery Centre
A3: Plant Description and Design | K3: Notes:
A5: This non-hazardous waste incinerator operates 24/7 and the environmental permit allows it to process up to 240,000 tonnes of municipal waste and commercial/Industrial waste, however, in 2021 there was an agreement reached with the EA that allowed the facility to process over its permit allowance due to Covid waste streams. The plant has two furnace lines and the heat produced by waste incineration is used to raise superheated steam which generates approximately 188,000 MWh/annum of electricity. Activities associated with the incineration are receipt and storage of municipal waste and commercial/industrial waste, production of steam and electricity, abatement of flue gas and handling of Incinerator Bottom Ash (IBA) and Air Pollution Control Residue (APCR). The data included within this report corresponds to the following period: 1st January 2021 to 31st December 2021. | K5: Include summary of plant design, design capacity, no. of combustion lines, electrical and heat capacity and any other general information that descibes the facility, its location and purpose
A20: Summary of Operational Processes and Procedures
A22: Incoming waste is delivered to site by refuse collection trucks. It is weighed in and delivered into the tipping hall. TIPPING HALL - A large tipping hall allows for refuse collection trucks to manoeuvre and tip waste safely. Air needed for combustion is drawn into the furnace from here so that negative pressure is maintained in order to avoid odour and dust escaping the building. BUNKER - Waste vehicles reverse to a wheel stop and tip their loads into a large concrete bunker. Mixing of waste occurs as the cranes driver sorts the waste looking for unsuitable material to be removed, and to improve the homogeneity of the incinerator feedstock. CONTROL ROOM - The plant’s control room centralises the operation of all equipment, including the grab cranes used to mix and load waste into a hopper that feeds the furnace. All on-site functions are monitored automatically and manually. Its systems verify in real time that equipment is functioning properly, continuously monitor the combustion gas, and maximise the efficiency of the entire ERC process. GRATE AND BOILER - Waste is lifted into the charging hoppers by the crane. From here it falls into the furnace-charging chute and then is introduced onto the grate system by hydraulic feeders for incineration. Auxiliary burners can be used to help keeping the temperature above 850°C if required. The thermal energy released from the burning is used to convert water to super-heated steam along a boiler composed of 4 passes. At high pressure, this steam drives a turbine to generate electricity. ELECTRICITY GENERATION - Electricity is generated at 11kv, with an electric production of approximately 180,000 MWh/annum and exporting approximately 160,000 MWh/annum to the national grid. INCINERATOR BOTTOM ASH (IBA) - Ash left on the grate after incineration is carried by conveyor, after quenching, to the IBA processing facility. Up to 65,000 tonne of IBA is processed on site by the removal of ferrous and non-ferrous metal, stabilised and separated into fraction sizes of IBA prior to the export from site of the processed IBA and metals for re-use. AIR-COOLED CONDENSERS - After exiting the turbine, the steam is cooled and condensed back into water through air condensers. This recovered water is treated and reused in the boilers to produce more steam. EMISSION CONTROL - The gases from the furnace are subject to a rigorous cleaning process involving ammonia as selective noncatalytic reduction (SNCR), lime and active carbon injections. This removes oxides of nitrogen, acidic gases, dioxins, and heavy metals from the gas stream. AIR POLLUTION CONTROL RESIDUE (APCR) - The cleaned gas passes through fine-fabric bag filters to remove solid particles before it is emitted through the stack. The resultant APCR residue, or fly-ash, contains particles from the incineration process, lime used in the flue gas treatment, salts and carbon dust. It is stored in a sealed silo until it is taken away for recycling in tankers. EMISSIONS MONITORING - As they pass through the stack, the residual flue gases from the process are continuously monitored before release. This data is relayed automatically to the control room. | K22: Include summary of key processes and procedures such as (but not limited to); waste reception, control rooms, grate, bed and bolier, energy & heat generation, cooling systems, residue management, emission controls, health and safety systems, maintenance

Sheet Operational Data
A1: =+'Cover Page'!$B$29 -> Annual Performance Report 2021 | E1: =+'Cover Page'!$B$33 -> Cornwall Energy Recovery Centre
A3: Operational Data | K3: Notes:
A4: Plant Size | B4: 240000 | D4: tonnes pa | E4: 86 | F4: MWth | G4: 24 | H4: MWe | K4: * - RDF to include SRF
A5: No. of combustion lines | B5: 2 | D5: No. of Turbines: | F5: 1 | K5: ** - CHP plants only
K6: 2020 updates include; heat in MWh, water in Litres, NCV in MJ/kg
A7: Waste types received | B7: Unit | C7: Q1 | D7: Q2 | E7: Q3 | F7: Q4 | G7: Year Total | H7: %
A8: Household / Local Authority | B8: tonnes | C8: 42546 | D8: 42783 | E8: 43342 | F8: 39778 | G8: =SUM(C8:F8) -> 168449 | H8: =IF(G8>0,G8/$G$18,"-") -> 0.6813563298 | K8: Availabiity Definition: 'the availability of a line is to be calculated by the number of hours the line reported Continuously Monitored emission levels to the Regulator through the calendar year divided by the total number of hours in that year. The overall plant availability is calculated as the Mean of all lines in the plant. For clarity this includes periods of Other Than Normal Operating Conditions (OTNOC) and abnormal operation.' Rationale: The primary function of an Energy from Waste facility is the disposal of waste. It follows therefore that the availability of a plant is determined by the period of time a facility spends undertaking this activity.
A9: Commercial & Industrial | C9: 21238 | D9: 15347 | E9: 22054 | F9: 20138 | G9: =SUM(C9:F9) -> 78777 | H9: 0.3186436702
A10: Hazardous | G10: 0 | H10: -
A11: Clinical | G11: 0 | H11: -
A12: Waste wood (biomass) | G12: 0 | H12: -
A13: Refuse Derived Fuel * - H'hold/LA | G13: =SUM(C13:F13) -> 0 | H13: -
A14: Refuse Derived Fuel * - C&I | G14: 0 | H14: -
A15: Other [Please specify] | G15: 0 | H15: -
A16: Other [Please specify]
A17: Other [Please specify]
A18: Total waste received | C18: =SUM(C8:C17) -> 63784 | D18: =SUM(D8:D17) -> 58130 | E18: =SUM(E8:E17) -> 65396 | F18: =SUM(F8:F17) -> 59916 | G18: =SUM(G8:G17) -> 247226 | H18: 1
A19: Rejected Waste | C19: 3.28 | D19: 5.76 | E19: 2.3 | F19: 0 | G19: =SUM(C19:F19) -> 11.34 | H19: =IF(G19>0,G19/$G$18,"-") -> 4.5868962e-05
A20: Unprocessed waste transferred out | G20: =SUM(C20:F20) -> 0 | H20: =IF(G20>0,G20/$G$18,"-") -> -
A21: Total waste combusted | C21: 62508 | D21: 56967 | E21: 64088 | F21: 58718 | G21: =SUM(C21:F21) -> 242281 | H21: =IF(G21>0,G21/$G$18,"-") -> 0.9799980585
A23: Energy Useage / Export | B23: Unit | C23: Q1 | D23: Q2 | E23: Q3 | F23: Q4 | G23: Year Total | H23: KWh/te
A24: Power Generated | B24: MWh | C24: 47154 | D24: 41474 | E24: 48098 | F24: 42700 | G24: =SUM(C24:F24) -> 179426 | H24: =IF(G24>0,G24*1000/$G$21,"-") -> 740.5698342
A25: Power Exported | C25: 41923 | D25: 37015 | E25: 42637 | F25: 37936 | G25: =SUM(C25:F25) -> 159511 | H25: =IF(G25>0,G25*1000/$G$21,"-") -> 658.3718905
A26: Power Used on site | C26: 5162 | D26: 4585 | E26: 5031 | F26: 4587 | G26: =SUM(C26:F26) -> 19365 | H26: =IF(G26>0,G26*1000/$G$21,"-") -> 79.92785237
A27: Power Imported | C27: 11 | D27: 496 | E27: 59 | F27: 103 | G27: 669 | H27: =IF(G27>0,G27*1000/$G$21,"-") -> 2.761256557
A28: Parasitic Load | B28: % | C28: =IF(C24>0,1-C25/(C24+C27),"-") -> 0.1111417365 | D28: =IF(D24>0,1-D25/(D24+D27),"-") -> 0.1180605194 | E28: =IF(E24>0,1-E25/(E24+E27),"-") -> 0.1146250805 | F28: =IF(F24>0,1-F25/(F24+F27),"-") -> 0.1137069832 | G28: =IF(G24>0,1-G25/(G24+G27),"-") -> 0.1142952331
A29: Thermal Energy Produced ** | B29: MWh | G29: =SUM(C29:F29) -> 0 | H29: =IF(G29>0,G29*1000/$G$21,"-") -> -
A30: Thermal Energy Exported ** | G30: 0 | H30: =IF(G30>0,G30*1000/$G$21,"-") -> -
A31: R1 value | G31: Design / Operational / n/a
A33: Waste Disposal & Recovery | B33: Unit | C33: Q1 | D33: Q2 | E33: Q3 | F33: Q4 | G33: Year Total | H33: % inputs
A34: APC Residues - produced | B34: tonnes | C34: 1540 | D34: 1474 | E34: 1268 | F34: 1434 | G34: =SUM(C34:F34) -> 5716 | H34: =IF(G34>0,G34/$G$21,"-") -> 0.02359244018
A35: IBA - produced | C35: 12021 | D35: 12345 | E35: 10169 | F35: 12506 | G35: 47041 | H35: =IF(G35>0,G35/$G$21,"-") -> 0.1941588486
A36: Metals recycling | C36: 2549 | D36: 2228 | E36: 2062 | F36: 1945 | G36: =SUM(C36:F36) -> 8784 | H36: 0.03625542242
A37: Other | C37: 0 | D37: 0 | E37: 0 | F37: 0 | G37: =SUM(C37:F37) -> 0 | H37: -
A38: Other | C38: 0 | D38: 0 | E38: 0 | F38: 0 | G38: 0 | H38: -
A39: Other | C39: 0 | D39: 0 | E39: 0 | F39: 0 | G39: 0 | H39: -
A41: Raw Material Usage | B41: Unit | C41: Q1 | D41: Q2 | E41: Q3 | F41: Q4 | G41: Year Total | H41: kg or Ltr /te
A42: Mains Water | B42: ltrs | C42: 5916990 | D42: 5583110 | E42: 6254800 | F42: 5764030 | G42: =SUM(C42:F42) -> 23518930 | H42: =IF(G42>0,G42/$G$21,"-") -> 97.07294423
A43: Other Water | B43: ltrs | G43: 0 | H43: =IF(G43>0,G43/$G$21,"-") -> -
A44: Ammonia | B44: kgs | C44: 38953 | D44: 45419 | E44: 52555 | F44: 45484 | G44: 182411 | H44: 0.752890239
A45: Urea | B45: kgs | G45: =SUM(C45:F45) -> 0 | H45: -
A46: Activated Carbon | B46: kgs | C46: 42831 | D46: 32446 | E46: 35724 | F46: 38155 | G46: =SUM(C46:F46) -> 149156 | H46: 0.6156322617
A47: Lime / hydrated lime | B47: kgs | C47: 475233 | D47: 465149 | E47: 386673 | F47: 328440 | G47: 1655495 | H47: 6.832954297
A48: Fuel oil | B48: ltrs | C48: 107647 | D48: 129917 | E48: 95224 | F48: 100482 | G48: 433270 | H48: 1.788295409
A49: Gas | B49: cf | C49: 0 | D49: 0 | E49: 0 | F49: 0 | G49: 0
A50: Other | C50: 0 | D50: 0 | E50: 0 | F50: 0 | G50: 0
A52: Summary | B52: Line/Unit | C52: Q1 | D52: Q2 | E52: Q3 | F52: Q4 | G52: Year Total | J52: Hrs in year
A53: Availability of waste combustion by line, hrs | B53: 1 | C53: 2078 | D53: 1873 | E53: 2160 | F53: 1964 | G53: =SUM(C53:F53) -> 8075 | H53: =G53/8760 -> 0.921803653 | J53: 8760
B54: 2 | C54: 2018 | D54: 1923 | E54: 1946 | F54: 1808 | G54: 7695 | H54: =G54/8760 -> 0.8784246575
B55: 3
B56: 4
B57: 5
A58: Overall Availability, mean avg. of all lines, hrs | G58: =AVERAGE(G53:G54) -> 7885 | H58: =G58/8760 -> 0.9001141553
A59: Hours of turbine operations, hrs | B59: 1 | C59: 2153 | D59: 1812 | E59: 2158 | F59: 2110 | G59: 8233 | H59: =G59/8760 -> 0.9398401826
A60: Hours of turbine operations, hrs | B60: 2
A61: Hours of heat / steam export
A62: Net Calorific Value of waste | B62: MJ/kg | C62: 9 | D62: 9.4 | E62: 9.6 | F62: 9.5 | G62: 9.2 | H62: -
A63: Abnormal Events | B63: qty. | C63: 2 | D63: 2 | E63: 3 | F63: 4 | G63: 11 | H63: =IF(G63>0,"yes","no") -> yes
A64: Abnormal operation | B64: hours | C64: 2.5 | D64: 1.5 | E64: 1.5 | F64: 2.5 | G64: 8 | H64: =+(G64)/J53 -> 0.0009132420091
A65: Permit Breaches | B65: qty. | C65: 4 | D65: 2 | E65: 0 | F65: 0 | G65: 6 | H65: =IF(G65>0,"yes","no") -> yes

Sheet Operational Summary
A1: =+'Cover Page'!$B$29 -> Annual Performance Report 2021 | E1: =+'Cover Page'!$B$33 -> Cornwall Energy Recovery Centre
A3: Summary of Plant Operations and Maintenance during the reporting year | K3: Notes:
A5: The main annual outage of 2021 took place in April and although there were still Covid restrictions in place we were able to complete all scheduled work. The outage works consisited of the normal grit blasting of all internal furnace tubes, thickness testing and NDT. A large program of equipment overhauls was undertaken including grate and refractory inspections and repairs on both lines. The opportunity was taken to have two further separate line outages in November where the grates were fully overhauled and extensive remedial works were carried out on the baghouse cells and FGT duct walls Operationally the plant had a good level of reliability, hampered by a tube leak on the bullnose within the furnace of Line 2. During these repairs the opportunity was taken to carry out further offline defect works. Vinci returned to site during the year to undertake major repair works to the roof which had been outstanding since the end of the inital warranty period. | K5: Include summary of key operational and/or mainteanance activity undertaken in the year, such as any major component upgrades and/or replacements
A29: Summary of Residue Handling for the reporting year
A31: All IBA produced by the incineration process is treated on site at the bottom ash recycling plant operated by Blue Phoenix. The aggregates are separated from the metals with aggregates being sold as a secondary aggregate for use in construction and all metals being recycled. All APCR produced is currently disposed of to hazardous landfill. | K31: Include in here a summary of residue handling regimes and destinations

Sheet Perf. Form 1
A1: =+'Cover Page'!C39 -> 2021 | B1: Annual Reporting Performance Form 1
A3: =+'Cover Page'!B31 -> Permit EPR/GP3433GH | F3: Operator: | G3: SUEZ Recycling and Recovery UK Ltd
A4: Facility: | B4: =+'Cover Page'!B33:I33 -> Cornwall Energy Recovery Centre | F4: Form: | G4: Performance 1
A6: Reporting Period from: | D6: 2021-01-01 | F6: to: | G6: 2021-12-31
A8: =+A1 -> 2021 | B8: Annual Reporting of Waste Disposal and Recovery
A9: Waste Description | C9: Disposal Route(s) | E9: Disposal Tonnes | G9: Recovery Tonnes | I9: % / tonne of waste incinerated
A10: 1) Hazardous Wastes
A11: APC Residues | C11: D05 | E11: 5716 | I11: =IF((E11+G11)>0,(E11+G11)/'Operational Data'!$G$21, "-") -> 0.02359244018
A12: IBA | I12: =IF((E12+G12)>0,(E12+G12)/'Operational Data'!$G$21, "-") -> -
I13: =IF((E13+G13)>0,(E13+G13)/'Operational Data'!$G$21, "-") -> -
I14: =IF((E14+G14)>0,(E14+G14)/'Operational Data'!$G$21, "-") -> -
A15: Total Hazardous Waste | E15: =SUM(E11:F14) -> 5716 | G15: =SUM(G11:H14) -> 0 | I15: =IF((E15+G15)>0,(E15+G15)/'Operational Data'!$G$21, "-") -> 0.02359244018
A17: 2) Non-Hazardous Wastes
A18: IBA | C18: R10 | G18: 47176 | I18: =IF((E18+G18)>0,(E18+G18)/'Operational Data'!$G$21, "-") -> 0.1947160528
A19: Ferrous Metal | G19: 4589 | I19: =IF((E19+G19)>0,(E19+G19)/'Operational Data'!$G$21, "-") -> 0.01894081666
A20: Non ferrous metal | G20: 4211 | I20: =IF((E20+G20)>0,(E20+G20)/'Operational Data'!$G$21, "-") -> 0.01738064479
I21: =IF((E21+G21)>0,(E21+G21)/'Operational Data'!$G$21, "-") -> -
I22: =IF((E22+G22)>0,(E22+G22)/'Operational Data'!$G$21, "-") -> -
A23: Total Non-Hazardous Waste | E23: =SUM(E18:F22) -> 0 | G23: =SUM(G18:H22) -> 55976 | I23: =IF((E23+G23)>0,(E23+G23)/'Operational Data'!$G$21, "-") -> 0.2310375143
A24: TOTAL WASTE | E24: =+E23+E15 -> 5716 | G24: =+G23+G15 -> 55976 | I24: =IF((E24+G24)>0,(E24+G24)/'Operational Data'!$G$21, "-") -> 0.2546299545
A26: Operator’s comments :
A31: =+A1 -> 2021 | B31: Annual Reporting of Water and Other Raw Material Usage
A32: Raw Material | E32: Usage | G32: Unit | H32: Specific Useage | J32: Unit
A33: Mains Water | E33: =+'Operational Data'!G42 -> 23518930 | G33: m3 | H33: =IF(E33>0,E33/'Operational Data'!$G$21,"-") -> 97.07294423 | J33: m3/te
A34: Total Water | E34: =+'Operational Data'!G43+'Operational Data'!G42 -> 23518930 | G34: m3 | H34: =IF(E34>0,E34/'Operational Data'!$G$21,"-") -> 97.07294423 | J34: m3/te
A35: Urea / Ammonia | E35: =+'Operational Data'!G44 -> 182411 | G35: kg | H35: =IF(E35>0,E35/'Operational Data'!$G$21,"-") -> 0.752890239 | J35: kg/te
A36: Activated Carbon | E36: =+'Operational Data'!G46 -> 149156 | G36: kg | H36: =IF(E36>0,E36/'Operational Data'!$G$21,"-") -> 0.6156322617 | J36: kg/te
A37: Lime / hydrated lime / Sodium Bicarb. | E37: =+'Operational Data'!G47 -> 1655495 | G37: kg | H37: =IF(E37>0,E37/'Operational Data'!$G$21,"-") -> 6.832954297 | J37: kg/te
A39: Operator’s comments :
A43: =+A31 -> 2021 | B43: Annual Reporting of other performance indicators
A44: Parameter | C44: Results by Line
C45: A1 | D45: A2 | E45: A3 | F45: A4 | G45: A5 | I45: Turbine 1 | J45: Turbine 2
A46: Operating hours for the year, hours | C46: 7869 | D46: 8360 | I46: 8141
A47: Number of periods of abnormal operation, qty. | C47: 6 | D47: 5
A48: Cumulative hours of abnormal operation for this year, hours | C48: 3.5 | D48: 4.5
A50: Operator’s comments :
A54: Signed: | B54: Richard Watkins | G54: Date: | H54: 2022-01-27

Sheet Energy Form 1
A1: =+'Cover Page'!C39 -> 2021 | B1: Annual Reporting of Energy Usage/Export
A3: =+'Cover Page'!B31 -> Permit EPR/GP3433GH | F3: Operator: | G3: SUEZ Recycling and Recovery UK Ltd
A5: Facility: | B5: =+'Cover Page'!B33:I33 -> Cornwall Energy Recovery Centre | F5: Form: | G5: Energy 1
A7: Reporting Period from: | D7: =+'Perf. Form 1'!D6:E6 -> 2021-01-01 | F7: to: | G7: =+'Perf. Form 1'!G6:H6 -> 2021-12-31
A9: Energy Source | D9: Energy Usage | F9: Unit | G9: Specific Useage (KWh/tonne incinerated
A10: Electricity Produced | D10: =+'Operational Data'!G24 -> 179426 | F10: MWh | G10: =+'Operational Data'!H24 -> 740.5698342
A11: Electricity Imported | D11: =+'Operational Data'!G27 -> 669 | F11: MWh | G11: =+'Operational Data'!H27 -> 2.761256557
A12: Electricity Exported | D12: =+'Operational Data'!G25 -> 159511 | F12: MWh | G12: =+'Operational Data'!H25 -> 658.3718905
A13: Gas Oil | D13: =('Operational Data'!G48/1000)*0.845 -> 366.11315 | F13: tonnes | G13: =D13/'Operational Data'!G21 -> 0.001511109621
A14: Steam/hot water exported | D14: =+'Operational Data'!G30 -> 0 | F14: GWh | G14: =+'Operational Data'!H30 -> -
A18: Operator’s comments :
A19: Density value of 0.845 used to convert gas oil in litres to tonnes
A29: Signed: | B29: Richard Watkins | G29: Date: | H29: 2022-01-27

Sheet Permit Compliance
A1: =+'Cover Page'!$B$29 -> Annual Performance Report 2021 | E1: =+'Cover Page'!$B$33 -> Cornwall Energy Recovery Centre
A3: Summary of Permit Compliance
A5: Compliance with permit limits for continuously monitored pollutants
A7: The plant met its emission limits as shown in the table below:
A8: Substance | C8: Percentage time compliant during operation | L8: Notes:
C9: Half-hourly limit | F9: Daily limit | L9: Report to 2 decimal places, i.e. xx.xx% Please provide a brief summary of each notification or non-compliance in the table (rather than just referring to notifications that were sent to the Regulator).
A10: Particulates | C10: 1 | F10: 1
A11: Oxides of nitrogen | C11: 1 | F11: 1
A12: Sulphur dioxide | C12: 1 | F12: 1
A13: Carbon monoxide | C13: 0.9998 | F13: 0.9998
A14: Total organic carbon | C14: 1 | F14: 1
A15: Hydrogen chloride | C15: 1 | F15: 1
A16: Hydrogen fluoride | C16: 1 | F16: 1
C17: =AVERAGE(C10:E16) -> 0.9999714286 | F17: =AVERAGE(F10:I16) -> 0.9999714286
A19: Summary of any notifications or non-compliances under the permit
A20: Date | B20: Summary of notification or non-compliance [including Line/Reference] | E20: Reason | H20: Measures taken to prevent reoccurrence
A21: 2021-03-01 | B21: L1 CO 1/2 hourly ELV breach | E21: Combustion instability due to fault on steam/water circuit | H21: Low level switch in condensate buffer tank replaced
A22: 2021-03-08 | B22: L1 CO 1/2 hourly ELV breach | E22: Combustion instability due to non-conforming waste | H22: Waste inspections, permit variation application
A23: 2021-04-04 | B23: L1 CO 1/2 hourly ELV breach | E23: Combustion instability due to fault with furnace temp probe | H23: Replace/recalibrate probes
A25: 2021-01-12 | B25: L2 CO 1/2 hourly ELV breach (x2) | E25: Combustion instability and burner failure | H25: Combustion control project, weekly burner PM and permit variation
A26: 2021-01-14 | B26: L2 CO 1/2 hourly ELV breach | E26: Combustion instability due to fouled pressure sensor | H26: Pressure sensor cleaned, permit variation application
A27: 2021-06-30 | B27: L2 CO 1/2 hourly ELV breach | E27: Combustion instability due to waste crane fault | H27: Plant taken offline until crane repairs completed
A29: 2021-06-05 | B29: L1 Abnormal Operation 30 mins - elevated particulates | E29: Failed bag filter | H29: Bag filter replaced
A30: 2021-09-18 | B30: L1 Abnormal Operation 30 mins - elevated particulates | E30: Failed bag filter | H30: Bag filter replaced
A31: 2021-10-06 | B31: L1 Abnormal Operation 30 mins - elevated particulates | E31: Failed bag filter | H31: Bag filter replaced
A32: 2021-12-08 | B32: L1 Abnormal Operation 30 mins - elevated particulates | E32: False analyser reading | H32: Service contractor attended site to resolve
A33: 2021-11-09 | B33: L1 CEMS Comms Fault, data loss 60 mins | E33: Software fault | H33: Service contractor investigating
A34: 2021-12-07 | B34: L1 CEMS Comms Fault, data loss 30 mins | E34: Software fault | H34: Service contractor investigating
A36: 2021-02-07 | B36: L2 Abnormal Operation 30 mins - elevated particulates | E36: Failed bag filter | H36: Bag filter replaced
A37: 2021-03-25 | B37: L2 Abnormal Operation 120 mins - elevated particulates | E37: Failed bag filter | H37: Bag filter replaced, repairs to BHF completed during annual maintenance outage
A38: 2021-06-29 | B38: L2 Abnormal Operation 60 mins - elevated particulates | E38: Failed bag filter | H38: Bag filter replaced, repairs to BHF completed during annual maintenance outage
A39: 2021-07-17 | B39: L2 Abnormal Operation 30 mins - elevated particulates | E39: Failed bag filter | H39: Bag filter replaced
A40: 2021-08-10 | B40: L2 CEMS Comms Fault, data loss 30 mins | E40: Software fault | H40: Service contractor investigating
A43: Summary of any complaints received and actions to taken to resolve them.
A44: Date | B44: Summary of complaint [including Line/Reference] | E44: Reason * | H44: Measures taken to prevent reoccurrence
A45: 2021-01-21 | B45: Complaint of continuous high pitched noise from the site received by the Helpdesk. Site staff conducted a walk around the site perimeter and local area to try and identify the noise. The noise was not emanating from the site. Complainant responded to by the Community Liaison Manager. | E45: None - not from site | H45: None required
E50: * including whether substantiated by the operator or the EA

Sheet Improvements
A1: =+'Cover Page'!$B$29 -> Annual Performance Report 2021 | E1: =+'Cover Page'!$B$33 -> Cornwall Energy Recovery Centre
A3: Summary of Plant Improvements
A5: Summary of any efficiency improvements that have been completed within the year.
A6: Shock Pulse Generators have been installed in the 2nd/3rd passes of both lines to assist with the reduction in boiler fouling in these areas.
A16: Summary of any permit improvement conditions that have been completed within the year and the resulting environmental benefits.
A27: Summary of any changes to the plant or operating techniques which required a variation to the permit and a summary of the resulting environmental impact.
A28: A permit variation application was submitted during October 2021 requesting a change to the compliance assessment arrangements for carbon monoxide (CO). Following the review of our emissions data, we are proposing to change the current emission limit value for CO within Table S4.1 of the permit from 100 mg/m3 (half hourly average) to 150 mg/m3 (95% of all 10-minute averages in any 24 hours period) as permissible by the IED Annex VI, Part 3, paragraph 1.5. The flue gas treatment system relied upon to meet the permit emission limits for most pollutants within the flue gases, does not mitigate CO concentrations. The only control over CO emissions are the combustion conditions which are influenced by the waste properties, grate speed and primary and secondary air flow and temperature. On the occasions that CO concentrations increase they generally do so very rapidly (especially in the case of non-conforming waste, i.e. gas bottles) and under these circumstances neither the automatic control systems or manual intervention by the operator can be carried out sufficiently quickly to prevent exceedances of the current half hourly limit, although emissions are generally back below the limit within a few minutes of the event. We have demonstrated that the combustion control system is able to keep the CO level well below the ELV’s when processing conforming waste. An impact assessment has been provided within the application to demonstrate that the change will not have any adverse environmental impact and that CO emissions will not increase as a result of the change.
A38: Summary of any other improvements made to the plant or planned to be made and a summary of the resulting environmental benefits.
A39: Modification to the secondary air nozzles and optimisation of the combustion control system is scheduled to take place on one line this year to improve plant stability. If succesful this will be replicated on the other line in 2023. The improvements should see a reduction in fouling of the boilers and also a reduction in CO levels that currently result from the combustion instability.

Sheet Public Liasion
A1: =+'Cover Page'!$B$29 -> Annual Performance Report 2021 | E1: =+'Cover Page'!$B$33 -> Cornwall Energy Recovery Centre
A3: Details of Public & Stakeholder Liaison
A5: Summary of events held during the reporting year.
A6: Date | C6: Description
A7: March to May 2021 | C7: A Virtual Tour was delivered to Falmouth School of Arts in support of a recycling communications project they are working on in Malaysia. Our Education Team supported Cornwall Council Communications Team with the filming of a short video at our Truro HWRC. The video was launched in May, 2021. Our Community Liaison Manager attended a Young Enterprise meeting to support Brannel School and is now also working with the Cornwall Council Careers Hub. The Connon Bridge Liaison Group help an extraordinary meeting on 13th April to allow for any further questions from the community regarding the planned changed to the site. A meeting of the CERC Community Liaison Group took place on 17th May to discuss an operational update and emissions monitoring along with other news updates. Several Virtual Tours were conducted to primary schools. The educational video created with Cornwall Council was launched alongside an upcycling competition promoted through our social media channels. As part of the Kernow KilomEaters - the Resurgence Challenge, Operational staff participated in a fundraising cycle event at the Camel Trail to raise money for Macmillan Cancer Support.
A9: June to July 2021 | C9: Nine Virtual Tours took place to primary schools and one adult interest group. SUEZ held a Spring Beach Clean event on 26th June at Harlyn Beach. SUEZ staff across Cornwall also participated in 'The Big Climb' for Macmillan Cancer Support and the Coast & Clay Sportive for Cornwall Hospice Care.
A11: September to October 2021 | C11: On 11th September, a joint SUEZ, Biffa and Cornwall Council education event was held at the St. Blazey Recycle, Reuse, Resale CIC Shop. On 22nd September, SUEZ held an educational event at Callywith College, Bodmin as part of the Cornwall Council 'Step It Up' and Recycling Week Campaign. In October, A CERC operational update was sent to the CERC Community Liaison Group which included reference to the Environment Agency dispensation, the Annual Report and the planned shutdown for maintenance. The Education Team answered several enquiries from the public about treatment of dioxins and furans and destinations for Incinerator Bottom Ash. SUEZ also assisted a local theatre company by providing them with cardboard from Pool MRF for props and scenery for their production. A number of adult interest groups visited the CERC, including the TEVI group from University of Exeter and Roseland Community Transport Group.
A13: November to December 2021 | C13: St. Erth Parish Council was approached in November with a view to forming a Community Liaison Group for the planned changes to the St. Erth RTS site. Education staff delivered an 'Inspiring People' assembly about recycling to St. Columb Primary School. A BBC Radio Cornwall interview took place at Truro HWRC with Cornwall Council representatives and SUEZ staff. SUEZ held three litter-pick events at Bodmin Beacon, Long Rock Beach and Crinnis Beach in November. Several adult interest groups visited CERC in November including Biffa and Cornwall Council Officers, and Cornwall Councillors. In addition to these visitors, we were very pleased to welcome lots of primary and secondary school groups to the CERC. In December, Julia Clarke (Chair of CERC CLG) made a visit to meet with the Community Liaison Manager, Lisa Thompson. SUEZ took part in the 'Festival of Christmas Trees' held at St. Dennis Church. SUEZ staff also donated fifty one Christmas Boxes (food hampers) to support a local charity who donate these to local families in need via Cornwall Council Social Services.
A16: List of events planned for next year
A17: Date | C17: Description
A18: January to March 2022 | C18: SUEZ will be hosting the Spring Beach Clean Event (date and venue TBC). Dragon's Den Event for Young Enterprise (taking place at the end of January). St. Erth Community Liaison Group to be established in January 2022. Connon Bridge CLG meeting to take place in Spring (date and venue TBC).
A20: April to June 2022 | C20: SUEZ will be represented at the Royal Cornwall Show in June. CERC Community Liaison Group to hold its annual meeting (date and venue TBC).
A22: July, 2022 | C22: SUEZ will be supporting the Coast and Clay Sportive event for Cornwall Hospice Care. We will be running a feed station for the cyclists who will be participating. Connon Bridge and St. Erth Community Liaison Group meetings to take place (date and venue TBC).
A24: August to September 2022 | C24: Educational Video about CERC to be re-styled to reflect future changes to the SUEZ sites around Cornwall.
A26: October to December 2022 | C26: SUEZ will be hosting the Autumn Beach Clean event (venue and date TBC). SUEZ to be represented at the Festival of Christmas Trees event at St. Dennis Church in December.
A29: If you wish to be involved in the public liaison programme, please contact Lisa Thompson lisa.thompson@suez.com

Sheet Residue Quality
A1: =+'Cover Page'!$B$29 -> Annual Performance Report 2021 | E1: =+'Cover Page'!$B$33 -> Cornwall Energy Recovery Centre
A3: Residue Quality Monitoring Requirements
A5: Summary of monitoring undertaken and compliance
A6: The samples for the quarterly IBA analysis were taken on the 17/02/2021, the 26/05/2021, the 18/08/2021 and the 10/11/2021.
A8: There were no issues identified by the analysis and all results for TOC were below the permit limit. LOI analysis is not required as TOC analysis is provided.
A13: Commentary on any specific events
A14: Date & Event | C14: Description
A27: Residue Quality Monitoring Results
A28: Parameter (unit) | C28: Limit | D28: Normal Operation
D29: Bottom ash | F29: APC Residues
A30: Loss on Ignition (average %) | C30: <5% | D30: N/A
A31: Total Organic Carbon (average %) | C31: <3% | D31: 2.4
A32: No. of Assessments Undertaken | C32: --- | D32: 4 | F32: 4
A33: No. of Hazardous Results | C33: --- | D33: 0
A35: Comments :
A36: 17/02/2021 TOC - 2.15 % 26/05/2021 TOC - 2.01 % 18/08/2021 TOC - 2.76 % 10/11/2021 TOC - 2.69 %

Sheet Water
A1: =+'Cover Page'!$B$29 -> Annual Performance Report 2021 | E1: =+'Cover Page'!$B$33 -> Cornwall Energy Recovery Centre
A3: Emissions to Water
A5: Summary of monitoring undertaken and compliance
A13: Commentary on any specific events
A14: Date & Event | C14: Description
A22: Emissions to Water / Sewer
A23: Parameter | D23: Monitoring Frequency | G23: Limit | H23: Target | I23: Max. | J23: Average

Sheet Air (periodic)
A1: =+'Cover Page'!$B$29 -> Annual Performance Report 2021 | E1: =+'Cover Page'!$B$33 -> Cornwall Energy Recovery Centre
A3: Emissions to Air (periodically monitored)
A5: Summary of monitoring undertaken, standards used and compliance | M5: Notes:
A6: The periodic emissions testing is carried out bi-annually in accordance with the requirements of the Permit by Element Materials Technology. The scheduled emissions testing visits were carried out during May and November 2021. | M6: Template may require adjustment for any bespoke monitoring requirements of permit.
A9: Results of emissions to air that are periodically monitored
A10: Substance | C10: Ref. Period | D10: Emission Limit Value | F10: Average | M10: User to add additional tables as necessary, depending on whether quarterly or bi-annual reporting is required for the compliance year
F11: A1 | G11: A2 | H11: A3 | I11: A4 | J11: A5
A12: Hydrogen fluoride | C12: 1 hr | D12: 2 mg/m3 | F12: 0.1905 | G12: 0.19
A13: Cd and Th and their compounds | C13: 6-8hrs | D13: 0.05 mg/m3 | F13: 0.0012 | G13: 0.001
A14: Hg and its compounds | C14: 6-8hrs | D14: 0.05 mg/m3 | F14: 0.0012 | G14: 0.001
A15: Sb, As, Pb, Cr, Co, Cu, Mn, Ni, V and their compounds | C15: 6-8hrs | D15: 0.5 mg/m3 | F15: 0.0455 | G15: 0.0675
A16: Dioxins & Furans (I-TEQ) | C16: 6-8hrs | D16: 0.1 ng/m3 | F16: 0.00345 | G16: 0.0021
A17: PCBs (WHO-TEQ Humans / Mammals) | C17: 6-8hrs | D17: None set ng/m3 | F17: 0.0001795 | G17: 0.0001655
A18: PCBs (WHO-TEQ Fish) | C18: 6-8hrs | D18: None set ng/m3 | F18: 1.05e-05 | G18: 9.5e-06
A19: PCBs (WHO-TEQ Birds) | C19: 6-8hrs | D19: None set ng/m3 | F19: 0.00094 | G19: 0.000621
A20: Dioxins & Furans (WHO-TEQ Humans / Mammals) | C20: 6-8hrs | D20: None set ng/m3 | F20: 0.0032 | G20: 0.00205
A21: Dioxins & Furans (WHO-TEQ Fish) | C21: 6-8hrs | D21: None set ng/m3 | F21: 0.00355 | G21: 0.00225
A22: Dioxins & Furans (WHO-TEQ Birds) | C22: 6-8hrs | D22: None set ng/m3 | F22: 0.0062 | G22: 0.0038
A23: Anthanthrene | C23: 6-8hrs | D23: None set µg/m3 | F23: 0.0012 | G23: 0.00125
A24: Benzo(a)anthracene | C24: 6-8hrs | D24: None set µg/m3 | F24: 0.0012 | G24: 0.00125
A25: Benzo(a)pyrene | C25: 6-8hrs | D25: None set µg/m3 | F25: 0.0012 | G25: 0.00125
A26: Benzo(b)fluoranthene | C26: 6-8hrs | D26: None set µg/m3 | F26: 0.00155 | G26: 0.00125
A27: Benzo(b)naptho(2,1-d) thiophene | C27: 6-8hrs | D27: None set µg/m3 | F27: 0.00185 | G27: 0.0019
A28: Benzo(c)phenanthrene | C28: 6-8hrs | D28: None set µg/m3 | F28: 0.0012 | G28: 0.00125
A29: Benzo(ghi)perylene | C29: 6-8hrs | D29: None set µg/m3 | F29: 0.0012 | G29: 0.00145
A30: Benzo(k)fluoranthene | C30: 6-8hrs | D30: None set µg/m3 | F30: 0.0012 | G30: 0.00125
A31: Cholanthrene | C31: 6-8hrs | D31: None set µg/m3 | F31: 0.0012 | G31: 0.00125
A32: Chrysene | C32: 6-8hrs | D32: None set µg/m3 | F32: 0.00215 | G32: 0.00235
A33: Cyclopenta(cd)pyrene | C33: 6-8hrs | D33: None set µg/m3 | F33: 0.0012 | G33: 0.002
A34: Dibenzo(ai)pyrene | C34: 6-8hrs | D34: None set µg/m3 | F34: 0.0012 | G34: 0.00125
A35: Dibenzo(ah)anthracene | C35: 6-8hrs | D35: None set µg/m3 | F35: 0.0024 | G35: 0.00125
A36: Fluoranthene | C36: 6-8hrs | D36: None set µg/m3 | F36: 0.0218 | G36: 0.0287
A37: Indeno(123-cd) pyrene | C37: 6-8hrs | D37: None set µg/m3 | F37: 0.0012 | G37: 0.00125
A38: Naphthalene | C38: 6-8hrs | D38: None set µg/m3 | F38: 0.45215 | G38: 0.20465
A39: Comments :
A40: Where the laboratory result was reported as a Method Detection Limit, the result has been replaced with a value equal to the MDL. Where dioxins/furans have been reported at the MDL the value has been replaced with a value equal to 0.5 times the MDL as per guidance received from the Environment Agency (Ben Freeman). The above mercury results were obtained using the MID 14385 standard. Additional (triplicate) mercury tests were carried out in accordance with the EN 13211 standard on both lines during November 2021. The results are not currently required by the permit and are therefore not included in the above average results for A1 & A2.

Sheet Air (CEMS)
A1: =+'Cover Page'!$B$29 -> Annual Performance Report 2021 | I1: =+'Cover Page'!$B$33 -> Cornwall Energy Recovery Centre
A3: Emissions to Air (continously monitored)
P4: Notes:
A5: Summary of monitoring undertaken, standards used and compliance | P5: Template may require adjustment for any bespoke monitoring requirements of permit
P6: Report to 2 decimal places, i.e. xx.xx%
A11: Results of emissions to air that are continuously monitored (maximum and average values for each line)
A12: Substance | B12: Reference Period | C12: Emission Limit Value | D12: A1 | F12: A2 | H12: A3 | J12: A4 | L12: A5
D13: Max. | E13: Avg. | F13: Max. | G13: Avg. | H13: Max. | I13: Avg. | J13: Max. | K13: Avg. | L13: Max. | M13: Avg.
A14: Oxides of nitrogen | B14: Daily mean | C14: 200 mg/m3 | D14: =NOx!O19 -> 147 | E14: =NOx!N19 -> 138.8 | F14: =NOx!O34 -> 153 | G14: =NOx!N34 -> 141.25
B15: ½ hourly mean | C15: 400 mg/m3 | D15: =NOx!M19 -> 160 | E15: =NOx!L19 -> 138.8 | F15: =NOx!M34 -> 194 | G15: =NOx!L34 -> 141.25
A16: Particulates | B16: Daily mean | C16: 10 mg/m3 | D16: =Particulates!O19 -> 5.1 | E16: =Particulates!N19 -> 1.875 | F16: =Particulates!O34 -> 5.4 | G16: =Particulates!N34 -> 0.925
B17: ½ hourly mean | C17: 30 mg/m3 | D17: =Particulates!M19 -> 82.7 | E17: =Particulates!L19 -> 1.875 | F17: =Particulates!M34 -> 80.9 | G17: =Particulates!L34 -> 0.925
A18: Total Organic Carbon | B18: Daily mean | C18: 10 mg/m3 | D18: =TOC!O19 -> 1 | E18: =TOC!N19 -> 0.3083333333 | F18: =TOC!O34 -> 2 | G18: =TOC!N34 -> 0.2166666667
B19: ½ hourly mean | C19: 20 mg/m3 | D19: =TOC!M19 -> 3.9 | E19: =TOC!L19 -> 0.3083333333 | F19: =TOC!M34 -> 4.5 | G19: =TOC!L34 -> 0.2166666667
A20: Hydrogen chloride | B20: Daily mean | C20: 10 mg/m3 | D20: =HCl!O19 -> 10 | E20: =HCl!N19 -> 6.741666667 | F20: =HCl!O34 -> 10 | G20: =HCl!N34 -> 6.716666667
B21: ½ hourly mean | C21: 60 mg/m3 | D21: =HCl!M19 -> 19 | E21: =HCl!L19 -> 6.741666667 | F21: =HCl!M34 -> 32 | G21: =HCl!L34 -> 6.716666667
A22: Sulphur dioxide | B22: Daily mean | C22: 50 mg/m3 | D22: ='SO2'!O19 -> 37 | E22: ='SO2'!N19 -> 14 | F22: ='SO2'!O34 -> 37 | G22: ='SO2'!N34 -> 14.25
B23: ½ hourly mean | C23: 200 mg/m3 | D23: ='SO2'!M19 -> 189 | E23: ='SO2'!L19 -> 14 | F23: ='SO2'!M34 -> 109 | G23: ='SO2'!L34 -> 14.25
A24: Carbon monoxide | B24: Daily mean | C24: 50 mg/m3 | D24: ='CO 0.5hourly'!O19 -> 10 | E24: ='CO 0.5hourly'!N19 -> 1.25 | F24: ='CO 0.5hourly'!O34 -> 20 | G24: ='CO 0.5hourly'!N34 -> 4.25
B25: ½ hourly mean | C25: 100 mg/m3 | D25: ='CO 0.5hourly'!M19 -> 119 | E25: ='CO 0.5hourly'!L19 -> 1.25 | F25: ='CO 0.5hourly'!M34 -> 165 | G25: ='CO 0.5hourly'!L34 -> 4.25
A26: Hydrogen Fluoride | B26: Daily mean | C26: 1 mg/m3 | D26: =HF!O19 -> 0 | E26: =HF!N19 -> 0 | F26: =HF!O34 -> 0.7 | G26: =HF!N34 -> 0
B27: ½ hourly mean | C27: 4 mg/m3 | D27: =HF!M19 -> 0.7 | E27: =HF!L19 -> 0 | F27: =HF!M34 -> 1 | G27: =HF!L34 -> 0
A28: Ammonia | B28: Daily mean | C28: 10 mg/m3 | D28: ='NH3'!O19 -> 1 | E28: ='NH3'!N19 -> 0.05 | F28: ='NH3'!O34 -> 1.7 | G28: ='NH3'!N34 -> 0.1166666667
A29: * = delete or amend as appropriate
A30: Comments :

Sheet HCl
A1: =+'Cover Page'!$B$29 -> Annual Performance Report 2021 | E1: =+'Cover Page'!$B$33 -> Cornwall Energy Recovery Centre
A3: Monitoring of Hydrogen Chloride emissions | D3: Whole Installation | G3: See Notes in Cell Q3 | J3: =+A3 -> Monitoring of Hydrogen Chloride emissions | N3: Per Combustion Line | Q3: Notes:
Q4: User to add logic to complete Whole installation, Table A5:G18. From the data in Per Combustion Line, Table J6:O79, subject to No. of lines installed
A5: mg/Nm3 | B5: 1/2 Hourly Reference Periods | E5: Daily Reference Periods
A6: =+'Cover Page'!C39 -> 2021 | B6: 1/2 hourly HCl ELV | C6: Monthly 1/2 hourly mean | D6: Highest 1/2 hourly maximum | E6: Daily HCl ELV | F6: Monthly daily mean | G6: Highest daily maximum | J6: =+A6 -> 2021 | K6: mg/Nm3 | L6: Monthly 1/2 hourly mean | M6: Monthly 1/2 hourly maximum | N6: Monthly daily mean | O6: Monthly daily maximum
A7: Jan | B7: 60 | C7: =AVERAGE(L7,L22) -> 6 | D7: =MAX(M7,M22) -> 16 | E7: 10 | F7: =AVERAGE(N7,N22) -> 6 | G7: =MAX(O7,O22) -> 6 | J7: A1 | K7: Jan | L7: 6 | M7: 11 | N7: 6 | O7: 6
A8: Feb | B8: 60 | C8: =AVERAGE(L8,L23) -> 6 | D8: =MAX(M8,M23) -> 14 | E8: 10 | F8: =AVERAGE(N8,N23) -> 6 | G8: =MAX(O8,O23) -> 7 | K8: Feb | L8: 6 | M8: 13 | N8: 6 | O8: 6
A9: Mar | B9: 60 | C9: =AVERAGE(L9,L24) -> 6 | D9: 14 | E9: 10 | F9: 6 | G9: 7 | K9: Mar | L9: 6 | M9: 11 | N9: 6 | O9: 7 | Q9: Whole Installation table A5:G18:
A10: Apr | B10: 60 | C10: 6.35 | D10: 17.6 | E10: 10 | F10: 6.35 | G10: 9.6 | K10: Apr | L10: 6.1 | M10: 8.8 | N10: 6.1 | O10: 6.4 | Q10: Mean: for 1/2 hourly and daily periods calculate mean of values across all operational combustion lines for the month
A11: May | B11: 60 | C11: 4.9 | D11: 8.9 | E11: 10 | F11: 4.9 | G11: 6.3 | K11: May | L11: 5.8 | M11: 8.9 | N11: 5.8 | O11: 6.3
A12: Jun | B12: 60 | C12: 6 | D12: 11 | E12: 10 | F12: 6 | G12: 6 | K12: Jun | L12: 6 | M12: 9 | N12: 6 | O12: 6
A13: Jul | B13: 60 | C13: 6 | D13: 24 | E13: 10 | F13: 6 | G13: 7 | K13: Jul | L13: 6 | M13: 13 | N13: 6 | O13: 6 | Q13: Maximum: for 1/2 hourly and daily periods use the highest value across all operational combustion lines for the month
A14: Aug | B14: 60 | C14: 6 | D14: 19 | E14: 10 | F14: 6 | G14: 7 | K14: Aug | L14: 6 | M14: 19 | N14: 6 | O14: 7
A15: Sep | B15: 60 | C15: 9 | D15: 14 | E15: 10 | F15: 9 | G15: 10 | K15: Sep | L15: 9 | M15: 14 | N15: 9 | O15: 10
A16: Oct | B16: 60 | C16: 9 | D16: 19 | E16: 10 | F16: 9 | G16: 10 | K16: Oct | L16: 9 | M16: 19 | N16: 9 | O16: 10
A17: Nov | B17: 60 | C17: 8 | D17: 32 | E17: 10 | F17: 8 | G17: 10 | K17: Nov | L17: 8 | M17: 12 | N17: 8 | O17: 10
A18: Dec | B18: 60 | C18: 7.5 | D18: 12 | E18: 10 | F18: 7.5 | G18: 10 | K18: Dec | L18: 7 | M18: 12 | N18: 7 | O18: 10
K19: Annual | L19: =AVERAGE(L7:L18) -> 6.741666667 | M19: =MAX(M7:M18) -> 19 | N19: =AVERAGE(N7:N18) -> 6.741666667 | O19: =MAX(O7:O18) -> 10
J21: =+A6 -> 2021 | K21: mg/Nm3 | L21: Monthly 1/2 hourly mean | M21: Monthly 1/2 hourly maximum | N21: Monthly daily mean | O21: Monthly daily maximum
J22: A2 | K22: Jan | L22: 6 | M22: 16 | N22: 6 | O22: 6
K23: Feb | L23: 6 | M23: 14 | N23: 6 | O23: 7
K24: Mar | L24: 6 | M24: 14 | N24: 6 | O24: 7
K25: Apr | L25: 6.6 | M25: 17.6 | N25: 6.6 | O25: 9.6
K26: May | L26: 4 | M26: 8 | N26: 4 | O26: 5
K27: Jun | L27: 6 | M27: 11 | N27: 6 | O27: 6
K28: Jul | L28: 6 | M28: 24 | N28: 6 | O28: 7
K29: Aug | L29: 6 | M29: 11 | N29: 6 | O29: 6
K30: Sep | L30: 9 | M30: 14 | N30: 9 | O30: 10
K31: Oct | L31: 9 | M31: 13 | N31: 9 | O31: 10
K32: Nov | L32: 8 | M32: 32 | N32: 8 | O32: 10
K33: Dec | L33: 8 | M33: 12 | N33: 8 | O33: 10
K34: Annual | L34: =AVERAGE(L22:L33) -> 6.716666667 | M34: =MAX(M22:M33) -> 32 | N34: =AVERAGE(N22:N33) -> 6.716666667 | O34: =MAX(O22:O33) -> 10
J36: =+A6 -> 2021 | K36: mg/Nm3 | L36: Monthly 1/2 hourly mean | M36: Monthly 1/2 hourly maximum | N36: Monthly daily mean | O36: Monthly daily maximum
J37: A3 | K37: Jan
K38: Feb
K39: Mar
K40: Apr
K41: May
K42: Jun
K43: Jul
K44: Aug
K45: Sep
K46: Oct
K47: Nov
A48: Comments : | K48: Dec
K49: Annual | L49: =AVERAGE(L37:L48) ->  | M49: =MAX(M37:M48) -> 0 | N49: =AVERAGE(N37:N48) ->  | O49: =MAX(O37:O48) -> 0
J51: =+A6 -> 2021 | K51: mg/Nm3 | L51: Monthly 1/2 hourly mean | M51: Monthly 1/2 hourly maximum | N51: Monthly daily mean | O51: Monthly daily maximum
J52: A4 | K52: Jan
K53: Feb
K54: Mar
K55: Apr
K56: May
K57: Jun
K58: Jul
K59: Aug
K60: Sep
K61: Oct
K62: Nov
K63: Dec
K64: Annual | L64: =AVERAGE(L52:L63) ->  | M64: =MAX(M52:M63) -> 0 | N64: =AVERAGE(N52:N63) ->  | O64: =MAX(O52:O63) -> 0
J66: =+A6 -> 2021 | K66: mg/Nm3 | L66: Monthly 1/2 hourly mean | M66: Monthly 1/2 hourly maximum | N66: Monthly daily mean | O66: Monthly daily maximum
J67: A5 | K67: Jan
K68: Feb
K69: Mar
K70: Apr
K71: May
K72: Jun
K73: Jul
K74: Aug
K75: Sep
K76: Oct
K77: Nov
K78: Dec
K79: Annual | L79: =AVERAGE(L67:L78) ->  | M79: =MAX(M67:M78) -> 0 | N79: =AVERAGE(N67:N78) ->  | O79: =MAX(O67:O78) -> 0

Sheet SO2
A1: =+'Cover Page'!$B$29 -> Annual Performance Report 2021 | E1: =+'Cover Page'!$B$33 -> Cornwall Energy Recovery Centre
A3: Monitoring of Sulphur dioxide emissions | D3: Whole Installation | G3: See Notes in Cell Q3 | J3: =+A3 -> Monitoring of Sulphur dioxide emissions | N3: Per Combustion Line | Q3: Notes:
Q4: User to add logic to complete Whole installation, Table A5:G18. From the data in Per Combustion Line, Table J6:O79, subject to No. of lines installed
A5: mg/Nm3 | B5: 1/2 Hourly Reference Periods | E5: Daily Reference Periods
A6: =+'Cover Page'!C39 -> 2021 | B6: 1/2 hourly SO2 ELV | C6: Monthly 1/2 hourly mean | D6: Highest 1/2 hourly maximum | E6: Daily SO2 ELV | F6: Monthly daily mean | G6: Highest daily maximum | J6: =+A6 -> 2021 | K6: mg/Nm3 | L6: Monthly 1/2 hourly mean | M6: Monthly 1/2 hourly maximum | N6: Monthly daily mean | O6: Monthly daily maximum
A7: Jan | B7: 200 | C7: =AVERAGE(L7,L22) -> 14 | D7: =MAX(M7,M22) -> 46 | E7: 50 | F7: =AVERAGE(N7,N22) -> 14 | G7: =MAX(O7,O22) -> 25 | J7: A1 | K7: Jan | L7: 15 | M7: 46 | N7: 15 | O7: 25
A8: Feb | B8: 200 | C8: =AVERAGE(L8,L23) -> 15 | D8: =MAX(M8,M23) -> 189 | E8: 50 | F8: =AVERAGE(N8,N23) -> 15 | G8: =MAX(O8,O23) -> 33 | K8: Feb | L8: 16 | M8: 189 | N8: 16 | O8: 33
A9: Mar | B9: 200 | C9: 11.5 | D9: 59 | E9: 50 | F9: 11.5 | G9: 22 | K9: Mar | L9: 9 | M9: 44 | N9: 9 | O9: 15 | Q9: Whole Installation table A5:G18:
A10: Apr | B10: 200 | C10: 10.5 | D10: 49 | E10: 50 | F10: 10.5 | G10: 37 | K10: Apr | L10: 12 | M10: 49 | N10: 12 | O10: 37 | Q10: Mean: for 1/2 hourly and daily periods calculate mean of values across all operational combustion lines for the month
A11: May | B11: 200 | C11: 19 | D11: 49 | E11: 50 | F11: 19 | G11: 37 | K11: May | L11: 19 | M11: 44 | N11: 19 | O11: 37
A12: Jun | B12: 200 | C12: 12.5 | D12: 75 | E12: 50 | F12: 12.5 | G12: 19 | K12: Jun | L12: 12 | M12: 60 | N12: 12 | O12: 16
A13: Jul | B13: 200 | C13: 14.5 | D13: 53 | E13: 50 | F13: 14.5 | G13: 20 | K13: Jul | L13: 12 | M13: 53 | N13: 12 | O13: 15 | Q13: Maximum: for 1/2 hourly and daily periods use the highest value across all operational combustion lines for the month
A14: Aug | B14: 200 | C14: 13.5 | D14: 62 | E14: 50 | F14: 13.5 | G14: 19 | K14: Aug | L14: 13 | M14: 62 | N14: 13 | O14: 17
A15: Sep | B15: 200 | C15: 13.5 | D15: 35 | E15: 50 | F15: 13.5 | G15: 18 | K15: Sep | L15: 13 | M15: 24 | N15: 13 | O15: 16
A16: Oct | B16: 200 | C16: 14.5 | D16: 52 | E16: 50 | F16: 14.5 | G16: 17 | K16: Oct | L16: 15 | M16: 52 | N16: 15 | O16: 17
A17: Nov | B17: 200 | C17: 14 | D17: 31 | E17: 50 | F17: 14 | G17: 17 | K17: Nov | L17: 15 | M17: 26 | N17: 15 | O17: 17
A18: Dec | B18: 200 | C18: 17 | D18: 55 | E18: 50 | F18: 17 | G18: 19 | K18: Dec | L18: 17 | M18: 55 | N18: 17 | O18: 19
K19: Annual | L19: =AVERAGE(L7:L18) -> 14 | M19: =MAX(M7:M18) -> 189 | N19: =AVERAGE(N7:N18) -> 14 | O19: =MAX(O7:O18) -> 37
J21: =+A6 -> 2021 | K21: mg/Nm3 | L21: Monthly 1/2 hourly mean | M21: Monthly 1/2 hourly maximum | N21: Monthly daily mean | O21: Monthly daily maximum
J22: A2 | K22: Jan | L22: 13 | M22: 43 | N22: 13 | O22: 25
K23: Feb | L23: 14 | M23: 109 | N23: 14 | O23: 23
K24: Mar | L24: 14 | M24: 59 | N24: 14 | O24: 22
K25: Apr | L25: 9 | M25: 26 | N25: 9 | O25: 19
K26: May | L26: 19 | M26: 49 | N26: 19 | O26: 37
K27: Jun | L27: 13 | M27: 75 | N27: 13 | O27: 19
K28: Jul | L28: 17 | M28: 52 | N28: 17 | O28: 20
K29: Aug | L29: 14 | M29: 27 | N29: 14 | O29: 19
K30: Sep | L30: 14 | M30: 35 | N30: 14 | O30: 18
K31: Oct | L31: 14 | M31: 32 | N31: 14 | O31: 17
K32: Nov | L32: 13 | M32: 31 | N32: 13 | O32: 17
K33: Dec | L33: 17 | M33: 44 | N33: 17 | O33: 19
K34: Annual | L34: =AVERAGE(L22:L33) -> 14.25 | M34: =MAX(M22:M33) -> 109 | N34: =AVERAGE(N22:N33) -> 14.25 | O34: =MAX(O22:O33) -> 37
J36: =+A6 -> 2021 | K36: mg/Nm3 | L36: Monthly 1/2 hourly mean | M36: Monthly 1/2 hourly maximum | N36: Monthly daily mean | O36: Monthly daily maximum
J37: A3 | K37: Jan
K38: Feb
K39: Mar
K40: Apr
K41: May
K42: Jun
K43: Jul
K44: Aug
K45: Sep
K46: Oct
K47: Nov
A48: Comments : | K48: Dec
K49: Annual | L49: =AVERAGE(L37:L48) ->  | M49: =MAX(M37:M48) -> 0 | N49: =AVERAGE(N37:N48) ->  | O49: =MAX(O37:O48) -> 0
J51: =+A6 -> 2021 | K51: mg/Nm3 | L51: Monthly 1/2 hourly mean | M51: Monthly 1/2 hourly maximum | N51: Monthly daily mean | O51: Monthly daily maximum
J52: A4 | K52: Jan
K53: Feb
K54: Mar
K55: Apr
K56: May
K57: Jun
K58: Jul
K59: Aug
K60: Sep
K61: Oct
K62: Nov
K63: Dec
K64: Annual | L64: =AVERAGE(L52:L63) ->  | M64: =MAX(M52:M63) -> 0 | N64: =AVERAGE(N52:N63) ->  | O64: =MAX(O52:O63) -> 0
J66: =+A6 -> 2021 | K66: mg/Nm3 | L66: Monthly 1/2 hourly mean | M66: Monthly 1/2 hourly maximum | N66: Monthly daily mean | O66: Monthly daily maximum
J67: A5 | K67: Jan
K68: Feb
K69: Mar
K70: Apr
K71: May
K72: Jun
K73: Jul
K74: Aug
K75: Sep
K76: Oct
K77: Nov
K78: Dec
K79: Annual | L79: =AVERAGE(L67:L78) ->  | M79: =MAX(M67:M78) -> 0 | N79: =AVERAGE(N67:N78) ->  | O79: =MAX(O67:O78) -> 0

Sheet NOx
A1: =+'Cover Page'!$B$29 -> Annual Performance Report 2021 | E1: =+'Cover Page'!$B$33 -> Cornwall Energy Recovery Centre
A3: Monitoring of Oxides of Nitrogen emissions | D3: Whole Installation | G3: See Notes in Cell Q3 | J3: =+A3 -> Monitoring of Oxides of Nitrogen emissions | N3: Per Combustion Line | Q3: Notes:
Q4: User to add logic to complete Whole installation, Table A5:G18. From the data in Per Combustion Line, Table J6:O79, subject to No. of lines installed
A5: mg/Nm3 | B5: 1/2 Hourly Reference Periods | E5: Daily Reference Periods
A6: =+'Cover Page'!C39 -> 2021 | B6: 1/2 hourly NOx ELV | C6: Monthly 1/2 hourly mean | D6: Highest 1/2 hourly maximum | E6: Daily NOx ELV | F6: Monthly daily mean | G6: Highest daily maximum | J6: =+A6 -> 2021 | K6: mg/Nm3 | L6: Monthly 1/2 hourly mean | M6: Monthly 1/2 hourly maximum | N6: Monthly daily mean | O6: Monthly daily maximum
A7: Jan | B7: 400 | C7: =AVERAGE(L7,L22) -> 139.35 | D7: =MAX(M7,M22) -> 160 | E7: 200 | F7: =AVERAGE(N7,N22) -> 139.35 | G7: =MAX(O7,O22) -> 145 | J7: A1 | K7: Jan | L7: 141.2 | M7: 160 | N7: 141.2 | O7: 145
A8: Feb | B8: 400 | C8: =AVERAGE(L8,L23) -> 139.95 | D8: =MAX(M8,M23) -> 160 | E8: 200 | F8: =AVERAGE(N8,N23) -> 139.95 | G8: =MAX(O8,O23) -> 147 | K8: Feb | L8: 141.6 | M8: 160 | N8: 141.6 | O8: 147
A9: Mar | B9: 400 | C9: 135.65 | D9: 157 | E9: 200 | F9: 135.65 | G9: 144 | K9: Mar | L9: 135.8 | M9: 157 | N9: 135.8 | O9: 144 | Q9: Whole Installation table A5:G18:
A10: Apr | B10: 400 | C10: 131.35 | D10: 158 | E10: 200 | F10: 131.35 | G10: 144 | K10: Apr | L10: 134.3 | M10: 156 | N10: 134.3 | O10: 144 | Q10: Mean: for 1/2 hourly and daily periods calculate mean of values across all operational combustion lines for the month
A11: May | B11: 400 | C11: 143.2 | D11: 160 | E11: 200 | F11: 143.2 | G11: 148 | K11: May | L11: 142.2 | M11: 156 | N11: 142.2 | O11: 146
A12: Jun | B12: 400 | C12: 142.65 | D12: 161 | E12: 200 | F12: 142.65 | G12: 147 | K12: Jun | L12: 141.2 | M12: 156 | N12: 141.2 | O12: 146
A13: Jul | B13: 400 | C13: 142.35 | D13: 168 | E13: 200 | F13: 142.35 | G13: 150 | K13: Jul | L13: 138.3 | M13: 156 | N13: 138.3 | O13: 143 | Q13: Maximum: for 1/2 hourly and daily periods use the highest value across all operational combustion lines for the month
A14: Aug | B14: 400 | C14: 141.8 | D14: 194 | E14: 200 | F14: 141.8 | G14: 151 | K14: Aug | L14: 138.6 | M14: 153 | N14: 138.6 | O14: 142
A15: Sep | B15: 400 | C15: 141.95 | D15: 190 | E15: 200 | F15: 141.95 | G15: 153 | K15: Sep | L15: 139 | M15: 157 | N15: 139 | O15: 142
A16: Oct | B16: 400 | C16: 141.75 | D16: 160 | E16: 200 | F16: 141.75 | G16: 147 | K16: Oct | L16: 139.1 | M16: 156 | N16: 139.1 | O16: 144
A17: Nov | B17: 400 | C17: 140.3 | D17: 158 | E17: 200 | F17: 140.3 | G17: 148 | K17: Nov | L17: 137.8 | M17: 156 | N17: 137.8 | O17: 143
A18: Dec | B18: 400 | C18: 140 | D18: 160 | E18: 200 | F18: 140 | G18: 148 | K18: Dec | L18: 136.5 | M18: 157 | N18: 136.5 | O18: 146
K19: Annual | L19: =AVERAGE(L7:L18) -> 138.8 | M19: =MAX(M7:M18) -> 160 | N19: =AVERAGE(N7:N18) -> 138.8 | O19: =MAX(O7:O18) -> 147
J21: =+A6 -> 2021 | K21: mg/Nm3 | L21: Monthly 1/2 hourly mean | M21: Monthly 1/2 hourly maximum | N21: Monthly daily mean | O21: Monthly daily maximum
J22: A2 | K22: Jan | L22: 137.5 | M22: 160 | N22: 137.5 | O22: 143
K23: Feb | L23: 138.3 | M23: 155 | N23: 138.3 | O23: 143
K24: Mar | L24: 135.5 | M24: 154 | N24: 135.5 | O24: 144
K25: Apr | L25: 128.4 | M25: 158 | N25: 128.4 | O25: 142
K26: May | L26: 144.2 | M26: 160 | N26: 144.2 | O26: 148
K27: Jun | L27: 144.1 | M27: 161 | N27: 144.1 | O27: 147
K28: Jul | L28: 146.4 | M28: 168 | N28: 146.4 | O28: 150
K29: Aug | L29: 145 | M29: 194 | N29: 145 | O29: 151
K30: Sep | L30: 144.9 | M30: 190 | N30: 144.9 | O30: 153
K31: Oct | L31: 144.4 | M31: 160 | N31: 144.4 | O31: 147
K32: Nov | L32: 142.8 | M32: 158 | N32: 142.8 | O32: 148
K33: Dec | L33: 143.5 | M33: 160 | N33: 143.5 | O33: 148
K34: Annual | L34: =AVERAGE(L22:L33) -> 141.25 | M34: =MAX(M22:M33) -> 194 | N34: =AVERAGE(N22:N33) -> 141.25 | O34: =MAX(O22:O33) -> 153
J36: =+A6 -> 2021 | K36: mg/Nm3 | L36: Monthly 1/2 hourly mean | M36: Monthly 1/2 hourly maximum | N36: Monthly daily mean | O36: Monthly daily maximum
J37: A3 | K37: Jan
K38: Feb
K39: Mar
K40: Apr
K41: May
K42: Jun
K43: Jul
K44: Aug
K45: Sep
K46: Oct
K47: Nov
A48: Comments : | K48: Dec
K49: Annual | L49: =AVERAGE(L37:L48) ->  | M49: =MAX(M37:M48) -> 0 | N49: =AVERAGE(N37:N48) ->  | O49: =MAX(O37:O48) -> 0
J51: =+A6 -> 2021 | K51: mg/Nm3 | L51: Monthly 1/2 hourly mean | M51: Monthly 1/2 hourly maximum | N51: Monthly daily mean | O51: Monthly daily maximum
J52: A4 | K52: Jan
K53: Feb
K54: Mar
K55: Apr
K56: May
K57: Jun
K58: Jul
K59: Aug
K60: Sep
K61: Oct
K62: Nov
K63: Dec
K64: Annual | L64: =AVERAGE(L52:L63) ->  | M64: =MAX(M52:M63) -> 0 | N64: =AVERAGE(N52:N63) ->  | O64: =MAX(O52:O63) -> 0
J66: =+A6 -> 2021 | K66: mg/Nm3 | L66: Monthly 1/2 hourly mean | M66: Monthly 1/2 hourly maximum | N66: Monthly daily mean | O66: Monthly daily maximum
J67: A5 | K67: Jan
K68: Feb
K69: Mar
K70: Apr
K71: May
K72: Jun
K73: Jul
K74: Aug
K75: Sep
K76: Oct
K77: Nov
K78: Dec
K79: Annual | L79: =AVERAGE(L67:L78) ->  | M79: =MAX(M67:M78) -> 0 | N79: =AVERAGE(N67:N78) ->  | O79: =MAX(O67:O78) -> 0

Sheet TOC
A1: =+'Cover Page'!$B$29 -> Annual Performance Report 2021 | E1: =+'Cover Page'!$B$33 -> Cornwall Energy Recovery Centre
A3: Monitoring of Total organic carbon emissions | D3: Whole Installation | G3: See Notes in Cell Q3 | J3: =+A3 -> Monitoring of Total organic carbon emissions | N3: Per Combustion Line | Q3: Notes:
Q4: User to add logic to complete Whole installation, Table A5:G18. From the data in Per Combustion Line, Table J6:O79, subject to No. of lines installed
A5: mg/Nm3 | B5: 1/2 Hourly Reference Periods | E5: Daily Reference Periods
A6: =+'Cover Page'!C39 -> 2021 | B6: 1/2 hourly TOC ELV | C6: Monthly 1/2 hourly mean | D6: Highest 1/2 hourly maximum | E6: Daily TOC ELV | F6: Monthly daily mean | G6: Highest daily maximum | J6: =+A6 -> 2021 | K6: mg/Nm3 | L6: Monthly 1/2 hourly mean | M6: Monthly 1/2 hourly maximum | N6: Monthly daily mean | O6: Monthly daily maximum
A7: Jan | B7: 20 | C7: =AVERAGE(L7,L22) -> 0.3 | D7: =MAX(M7,M22) -> 4.5 | E7: 10 | F7: =AVERAGE(N7,N22) -> 0.3 | G7: =MAX(O7,O22) -> 0.7 | J7: A1 | K7: Jan | L7: 0.3 | M7: 2.2 | N7: 0.3 | O7: 0.6
A8: Feb | B8: 20 | C8: =AVERAGE(L8,L23) -> 0.25 | D8: =MAX(M8,M23) -> 3.9 | E8: 10 | F8: =AVERAGE(N8,N23) -> 0.25 | G8: =MAX(O8,O23) -> 0.8 | K8: Feb | L8: 0.3 | M8: 3.9 | N8: 0.3 | O8: 0.6
A9: Mar | B9: 20 | C9: 0.25 | D9: 2.6 | E9: 10 | F9: 0.25 | G9: 0.5 | K9: Mar | L9: 0.3 | M9: 2.5 | N9: 0.3 | O9: 0.5 | Q9: Whole Installation table A5:G18:
A10: Apr | B10: 20 | C10: 0.25 | D10: 3.2 | E10: 10 | F10: 0.25 | G10: 0.8 | K10: Apr | L10: 0.3 | M10: 3.2 | N10: 0.3 | O10: 0.8 | Q10: Mean: for 1/2 hourly and daily periods calculate mean of values across all operational combustion lines for the month
A11: May | B11: 20 | C11: 0.15 | D11: 3 | E11: 10 | F11: 0.15 | G11: 2 | K11: May | L11: 0.3 | M11: 2.3 | N11: 0.3 | O11: 0.4
A12: Jun | B12: 20 | C12: 0.3 | D12: 2.9 | E12: 10 | F12: 0.3 | G12: 0.5 | K12: Jun | L12: 0.3 | M12: 1.9 | N12: 0.3 | O12: 0.4
A13: Jul | B13: 20 | C13: 0.25 | D13: 2.4 | E13: 10 | F13: 0.25 | G13: 0.5 | K13: Jul | L13: 0.3 | M13: 1.7 | N13: 0.3 | O13: 0.5 | Q13: Maximum: for 1/2 hourly and daily periods use the highest value across all operational combustion lines for the month
A14: Aug | B14: 20 | C14: 0.3 | D14: 2.1 | E14: 10 | F14: 0.3 | G14: 0.6 | K14: Aug | L14: 0.4 | M14: 1.9 | N14: 0.4 | O14: 0.5
A15: Sep | B15: 20 | C15: 0.4 | D15: 2.7 | E15: 10 | F15: 0.4 | G15: 0.7 | K15: Sep | L15: 0.4 | M15: 2.6 | N15: 0.4 | O15: 0.7
A16: Oct | B16: 20 | C16: 0.35 | D16: 3.4 | E16: 10 | F16: 0.35 | G16: 0.6 | K16: Oct | L16: 0.4 | M16: 1.8 | N16: 0.4 | O16: 0.6
A17: Nov | B17: 20 | C17: 0 | D17: 2 | E17: 10 | F17: 0 | G17: 1 | K17: Nov | L17: 0 | M17: 2 | N17: 0 | O17: 1
A18: Dec | B18: 20 | C18: 0.35 | D18: 1.4 | E18: 10 | F18: 0.35 | G18: 0.5 | K18: Dec | L18: 0.4 | M18: 0.9 | N18: 0.4 | O18: 0.4
K19: Annual | L19: =AVERAGE(L7:L18) -> 0.3083333333 | M19: =MAX(M7:M18) -> 3.9 | N19: =AVERAGE(N7:N18) -> 0.3083333333 | O19: =MAX(O7:O18) -> 1
J21: =+A6 -> 2021 | K21: mg/Nm3 | L21: Monthly 1/2 hourly mean | M21: Monthly 1/2 hourly maximum | N21: Monthly daily mean | O21: Monthly daily maximum
J22: A2 | K22: Jan | L22: 0.3 | M22: 4.5 | N22: 0.3 | O22: 0.7
K23: Feb | L23: 0.2 | M23: 3.1 | N23: 0.2 | O23: 0.8
K24: Mar | L24: 0.2 | M24: 2.6 | N24: 0.2 | O24: 0.4
K25: Apr | L25: 0.2 | M25: 2.6 | N25: 0.2 | O25: 0.6
K26: May | L26: 0 | M26: 3 | N26: 0 | O26: 2
K27: Jun | L27: 0.3 | M27: 2.9 | N27: 0.3 | O27: 0.5
K28: Jul | L28: 0.2 | M28: 2.4 | N28: 0.2 | O28: 0.5
K29: Aug | L29: 0.2 | M29: 2.1 | N29: 0.2 | O29: 0.6
K30: Sep | L30: 0.4 | M30: 2.7 | N30: 0.4 | O30: 0.4
K31: Oct | L31: 0.3 | M31: 3.4 | N31: 0.3 | O31: 0.6
K32: Nov | L32: 0 | M32: 1 | N32: 0 | O32: 0
K33: Dec | L33: 0.3 | M33: 1.4 | N33: 0.3 | O33: 0.5
K34: Annual | L34: =AVERAGE(L22:L33) -> 0.2166666667 | M34: =MAX(M22:M33) -> 4.5 | N34: =AVERAGE(N22:N33) -> 0.2166666667 | O34: =MAX(O22:O33) -> 2
J36: =+A6 -> 2021 | K36: mg/Nm3 | L36: Monthly 1/2 hourly mean | M36: Monthly 1/2 hourly maximum | N36: Monthly daily mean | O36: Monthly daily maximum
J37: A3 | K37: Jan
K38: Feb
K39: Mar
K40: Apr
K41: May
K42: Jun
K43: Jul
K44: Aug
K45: Sep
K46: Oct
K47: Nov
A48: Comments : | K48: Dec
K49: Annual | L49: =AVERAGE(L37:L48) ->  | M49: =MAX(M37:M48) -> 0 | N49: =AVERAGE(N37:N48) ->  | O49: =MAX(O37:O48) -> 0
J51: =+A6 -> 2021 | K51: mg/Nm3 | L51: Monthly 1/2 hourly mean | M51: Monthly 1/2 hourly maximum | N51: Monthly daily mean | O51: Monthly daily maximum
J52: A4 | K52: Jan
K53: Feb
K54: Mar
K55: Apr
K56: May
K57: Jun
K58: Jul
K59: Aug
K60: Sep
K61: Oct
K62: Nov
K63: Dec
K64: Annual | L64: =AVERAGE(L52:L63) ->  | M64: =MAX(M52:M63) -> 0 | N64: =AVERAGE(N52:N63) ->  | O64: =MAX(O52:O63) -> 0
J66: =+A6 -> 2021 | K66: mg/Nm3 | L66: Monthly 1/2 hourly mean | M66: Monthly 1/2 hourly maximum | N66: Monthly daily mean | O66: Monthly daily maximum
J67: A5 | K67: Jan
K68: Feb
K69: Mar
K70: Apr
K71: May
K72: Jun
K73: Jul
K74: Aug
K75: Sep
K76: Oct
K77: Nov
K78: Dec
K79: Annual | L79: =AVERAGE(L67:L78) ->  | M79: =MAX(M67:M78) -> 0 | N79: =AVERAGE(N67:N78) ->  | O79: =MAX(O67:O78) -> 0

Sheet Particulates
A1: =+'Cover Page'!$B$29 -> Annual Performance Report 2021 | E1: =+'Cover Page'!$B$33 -> Cornwall Energy Recovery Centre
A3: Monitoring of Particulate matter emissions | D3: Whole Installation | G3: See Notes in Cell Q3 | J3: =+A3 -> Monitoring of Particulate matter emissions | N3: Per Combustion Line | Q3: Notes:
Q4: User to add logic to complete Whole installation, Table A5:G18. From the data in Per Combustion Line, Table J6:O79, subject to No. of lines installed
A5: mg/Nm3 | B5: 1/2 Hourly Reference Periods | E5: Daily Reference Periods
A6: =+'Cover Page'!C39 -> 2021 | B6: 1/2 hourly PM ELV | C6: Monthly 1/2 hourly mean | D6: Highest 1/2 hourly maximum | E6: Daily PM ELV | F6: Monthly daily mean | G6: Highest daily maximum | J6: =+A6 -> 2021 | K6: mg/Nm3 | L6: Monthly 1/2 hourly mean | M6: Monthly 1/2 hourly maximum | N6: Monthly daily mean | O6: Monthly daily maximum
A7: Jan | B7: 30 | C7: =AVERAGE(L7,L22) -> 0.65 | D7: =MAX(M7,M22) -> 1 | E7: 10 | F7: =AVERAGE(N7,N22) -> 0.65 | G7: =MAX(O7,O22) -> 0.8 | J7: A1 | K7: Jan | L7: 0.7 | M7: 1 | N7: 0.7 | O7: 0.8
A8: Feb | B8: 30 | C8: =AVERAGE(L8,L23) -> 0.7 | D8: =MAX(M8,M23) -> 52.4 | E8: 10 | F8: =AVERAGE(N8,N23) -> 0.7 | G8: =MAX(O8,O23) -> 2.2 | K8: Feb | L8: 0.7 | M8: 1.1 | N8: 0.7 | O8: 0.9
A9: Mar | B9: 30 | C9: 0.75 | D9: 80.9 | E9: 10 | F9: 0.75 | G9: 5.4 | K9: Mar | L9: 0.8 | M9: 5.7 | N9: 0.8 | O9: 1 | Q9: Whole Installation table A5:G18:
A10: Apr | B10: 30 | C10: 0.7 | D10: 10 | E10: 10 | F10: 0.7 | G10: 1.7 | K10: Apr | L10: 0.9 | M10: 2.4 | N10: 0.9 | O10: 1.7 | Q10: Mean: for 1/2 hourly and daily periods calculate mean of values across all operational combustion lines for the month
A11: May | B11: 30 | C11: 1.75 | D11: 28.8 | E11: 10 | F11: 1.75 | G11: 3.7 | K11: May | L11: 2.5 | M11: 28.8 | N11: 2.5 | O11: 3.7
A12: Jun | B12: 30 | C12: 1.8 | D12: 82.7 | E12: 10 | F12: 1.8 | G12: 4.4 | K12: Jun | L12: 2.7 | M12: 82.7 | N12: 2.7 | O12: 4.4
A13: Jul | B13: 30 | C13: 1.45 | D13: 47.1 | E13: 10 | F13: 1.45 | G13: 3.7 | K13: Jul | L13: 2.1 | M13: 47.1 | N13: 2.1 | O13: 3.7 | Q13: Maximum: for 1/2 hourly and daily periods use the highest value across all operational combustion lines for the month
A14: Aug | B14: 30 | C14: 2.3 | D14: 17 | E14: 10 | F14: 2.3 | G14: 5.1 | K14: Aug | L14: 3 | M14: 17 | N14: 3 | O14: 5.1
A15: Sep | B15: 30 | C15: 1.85 | D15: 54.9 | E15: 10 | F15: 1.85 | G15: 4.3 | K15: Sep | L15: 2.3 | M15: 54.9 | N15: 2.3 | O15: 4.3
A16: Oct | B16: 30 | C16: 2.1 | D16: 75 | E16: 10 | F16: 2.1 | G16: 4.5 | K16: Oct | L16: 3 | M16: 75 | N16: 3 | O16: 4.5
A17: Nov | B17: 30 | C17: 2 | D17: 10 | E17: 10 | F17: 2 | G17: 4 | K17: Nov | L17: 3 | M17: 10 | N17: 3 | O17: 4
A18: Dec | B18: 30 | C18: 0.75 | D18: 34.4 | E18: 10 | F18: 0.75 | G18: 1.6 | K18: Dec | L18: 0.8 | M18: 34.4 | N18: 0.8 | O18: 1.6
K19: Annual | L19: =AVERAGE(L7:L18) -> 1.875 | M19: =MAX(M7:M18) -> 82.7 | N19: =AVERAGE(N7:N18) -> 1.875 | O19: =MAX(O7:O18) -> 5.1
J21: =+A6 -> 2021 | K21: mg/Nm3 | L21: Monthly 1/2 hourly mean | M21: Monthly 1/2 hourly maximum | N21: Monthly daily mean | O21: Monthly daily maximum
J22: A2 | K22: Jan | L22: 0.6 | M22: 1 | N22: 0.6 | O22: 0.7
K23: Feb | L23: 0.7 | M23: 52.4 | N23: 0.7 | O23: 2.2
K24: Mar | L24: 0.7 | M24: 80.9 | N24: 0.7 | O24: 5.4
K25: Apr | L25: 0.5 | M25: 10 | N25: 0.5 | O25: 0.8
K26: May | L26: 1 | M26: 5 | N26: 1 | O26: 1
K27: Jun | L27: 0.9 | M27: 26 | N27: 0.9 | O27: 1.8
K28: Jul | L28: 0.8 | M28: 3.8 | N28: 0.8 | O28: 1.1
K29: Aug | L29: 1.6 | M29: 8.3 | N29: 1.6 | O29: 4
K30: Sep | L30: 1.4 | M30: 29.8 | N30: 1.4 | O30: 3.8
K31: Oct | L31: 1.2 | M31: 4.4 | N31: 1.2 | O31: 1.5
K32: Nov | L32: 1 | M32: 4 | N32: 1 | O32: 2
K33: Dec | L33: 0.7 | M33: 2.7 | N33: 0.7 | O33: 1.3
K34: Annual | L34: =AVERAGE(L22:L33) -> 0.925 | M34: =MAX(M22:M33) -> 80.9 | N34: =AVERAGE(N22:N33) -> 0.925 | O34: =MAX(O22:O33) -> 5.4
J36: =+A6 -> 2021 | K36: mg/Nm3 | L36: Monthly 1/2 hourly mean | M36: Monthly 1/2 hourly maximum | N36: Monthly daily mean | O36: Monthly daily maximum
J37: A3 | K37: Jan
K38: Feb
K39: Mar
K40: Apr
K41: May
K42: Jun
K43: Jul
K44: Aug
K45: Sep
K46: Oct
K47: Nov
A48: Comments : | K48: Dec
K49: Annual | L49: =AVERAGE(L37:L48) ->  | M49: =MAX(M37:M48) -> 0 | N49: =AVERAGE(N37:N48) ->  | O49: =MAX(O37:O48) -> 0
J51: =+A6 -> 2021 | K51: mg/Nm3 | L51: Monthly 1/2 hourly mean | M51: Monthly 1/2 hourly maximum | N51: Monthly daily mean | O51: Monthly daily maximum
J52: A4 | K52: Jan
K53: Feb
K54: Mar
K55: Apr
K56: May
K57: Jun
K58: Jul
K59: Aug
K60: Sep
K61: Oct
K62: Nov
K63: Dec
K64: Annual | L64: =AVERAGE(L52:L63) ->  | M64: =MAX(M52:M63) -> 0 | N64: =AVERAGE(N52:N63) ->  | O64: =MAX(O52:O63) -> 0
J66: =+A6 -> 2021 | K66: mg/Nm3 | L66: Monthly 1/2 hourly mean | M66: Monthly 1/2 hourly maximum | N66: Monthly daily mean | O66: Monthly daily maximum
J67: A5 | K67: Jan
K68: Feb
K69: Mar
K70: Apr
K71: May
K72: Jun
K73: Jul
K74: Aug
K75: Sep
K76: Oct
K77: Nov
K78: Dec
K79: Annual | L79: =AVERAGE(L67:L78) ->  | M79: =MAX(M67:M78) -> 0 | N79: =AVERAGE(N67:N78) ->  | O79: =MAX(O67:O78) -> 0

Sheet CO 0.5hourly
A1: =+'Cover Page'!$B$29 -> Annual Performance Report 2021 | E1: =+'Cover Page'!$B$33 -> Cornwall Energy Recovery Centre
A3: Monitoring of Carbon Monoxide (half hourly) | D3: Whole Installation | G3: See Notes in Cell Q3 | J3: =+A3 -> Monitoring of Carbon Monoxide (half hourly) | N3: Per Combustion Line | Q3: Notes:
Q4: User to add logic to complete Whole installation, Table A5:G18. From the data in Per Combustion Line, Table J6:O79, subject to No. of lines installed
A5: mg/Nm3 | B5: 1/2 Hourly Reference Periods | E5: Daily Reference Periods
A6: =+'Cover Page'!C39 -> 2021 | B6: 1/2 hourly CO ELV | C6: Monthly 1/2 hourly mean | D6: Highest 1/2 hourly maximum | E6: Daily CO ELV | F6: Monthly daily mean | G6: Highest daily maximum | J6: =+A6 -> 2021 | K6: mg/Nm3 | L6: Monthly 1/2 hourly mean | M6: Monthly 1/2 hourly maximum | N6: Monthly daily mean | O6: Monthly daily maximum
A7: Jan | B7: 100 | C7: =AVERAGE(L7,L22) -> 6.5 | D7: =MAX(M7,M22) -> 142 | E7: 50 | F7: =AVERAGE(N7,N22) -> 6.5 | G7: =MAX(O7,O22) -> 20 | J7: A1 | K7: Jan | L7: 4 | M7: 55 | N7: 4 | O7: 10
A8: Feb | B8: =+B7 -> 100 | C8: =AVERAGE(L8,L23) -> 6 | D8: =MAX(M8,M23) -> 98 | E8: =+E7 -> 50 | F8: =AVERAGE(N8,N23) -> 6 | G8: =MAX(O8,O23) -> 10 | K8: Feb | L8: 4 | M8: 98 | N8: 4 | O8: 8
A9: Mar | B9: =+B8 -> 100 | C9: 5 | D9: 113 | E9: =+E8 -> 50 | F9: 5 | G9: 10 | K9: Mar | L9: 4 | M9: 113 | N9: 4 | O9: 10 | Q9: Whole Installation table A5:G18:
A10: Apr | B10: 100 | C10: 3 | D10: 119 | E10: 50 | F10: 3 | G10: 17 | K10: Apr | L10: 1 | M10: 119 | N10: 1 | O10: 8 | Q10: Mean: for 1/2 hourly and daily periods calculate mean of values across all operational combustion lines for the month
A11: May | B11: 100 | C11: 2 | D11: 115 | E11: 50 | F11: 2 | G11: 8 | K11: May | L11: 0 | M11: 79 | N11: 0 | O11: 8
A12: Jun | B12: 100 | C12: 2.5 | D12: 165 | E12: 50 | F12: 2.5 | G12: 11 | K12: Jun | L12: 0 | M12: 45 | N12: 0 | O12: 1
A13: Jul | B13: 100 | C13: 1.5 | D13: 30 | E13: 50 | F13: 1.5 | G13: 6 | K13: Jul | L13: 0 | M13: 30 | N13: 0 | O13: 6 | Q13: Maximum: for 1/2 hourly and daily periods use the highest value across all operational combustion lines for the month
A14: Aug | B14: 100 | C14: 1 | D14: 58 | E14: 50 | F14: 1 | G14: 5 | K14: Aug | L14: 0 | M14: 27 | N14: 0 | O14: 0
A15: Sep | B15: 100 | C15: 1 | D15: 74 | E15: 50 | F15: 1 | G15: 4 | K15: Sep | L15: 0 | M15: 74 | N15: 0 | O15: 2
A16: Oct | B16: 100 | C16: 1 | D16: 70 | E16: 50 | F16: 1 | G16: 6 | K16: Oct | L16: 0 | M16: 26 | N16: 0 | O16: 1
A17: Nov | B17: 100 | C17: 1 | D17: 16 | E17: 50 | F17: 1 | G17: 4 | K17: Nov | L17: 0 | M17: 16 | N17: 0 | O17: 2
A18: Dec | B18: 100 | C18: 2.5 | D18: 27 | E18: 50 | F18: 2.5 | G18: 7 | K18: Dec | L18: 2 | M18: 27 | N18: 2 | O18: 4
K19: Annual | L19: =AVERAGE(L7:L18) -> 1.25 | M19: =MAX(M7:M18) -> 119 | N19: =AVERAGE(N7:N18) -> 1.25 | O19: =MAX(O7:O18) -> 10
J21: =+A6 -> 2021 | K21: mg/Nm3 | L21: Monthly 1/2 hourly mean | M21: Monthly 1/2 hourly maximum | N21: Monthly daily mean | O21: Monthly daily maximum
J22: A2 | K22: Jan | L22: 9 | M22: 142 | N22: 9 | O22: 20
K23: Feb | L23: 8 | M23: 47 | N23: 8 | O23: 10
K24: Mar | L24: 6 | M24: 68 | N24: 6 | O24: 10
K25: Apr | L25: 5 | M25: 88 | N25: 5 | O25: 17
K26: May | L26: 4 | M26: 115 | N26: 4 | O26: 8
K27: Jun | L27: 5 | M27: 165 | N27: 5 | O27: 11
K28: Jul | L28: 3 | M28: 28 | N28: 3 | O28: 6
K29: Aug | L29: 2 | M29: 58 | N29: 2 | O29: 5
K30: Sep | L30: 2 | M30: 51 | N30: 2 | O30: 4
K31: Oct | L31: 2 | M31: 70 | N31: 2 | O31: 6
K32: Nov | L32: 2 | M32: 8 | N32: 2 | O32: 4
K33: Dec | L33: 3 | M33: 16 | N33: 3 | O33: 7
K34: Annual | L34: =AVERAGE(L22:L33) -> 4.25 | M34: =MAX(M22:M33) -> 165 | N34: =AVERAGE(N22:N33) -> 4.25 | O34: =MAX(O22:O33) -> 20
J36: =+A6 -> 2021 | K36: mg/Nm3 | L36: Monthly 1/2 hourly mean | M36: Monthly 1/2 hourly maximum | N36: Monthly daily mean | O36: Monthly daily maximum
J37: A3 | K37: Jan
K38: Feb
K39: Mar
K40: Apr
K41: May
K42: Jun
K43: Jul
K44: Aug
K45: Sep
K46: Oct
K47: Nov
A48: Comments : | K48: Dec
K49: Annual | L49: =AVERAGE(L37:L48) ->  | M49: =MAX(M37:M48) -> 0 | N49: =AVERAGE(N37:N48) ->  | O49: =MAX(O37:O48) -> 0
J51: =+A6 -> 2021 | K51: mg/Nm3 | L51: Monthly 1/2 hourly mean | M51: Monthly 1/2 hourly maximum | N51: Monthly daily mean | O51: Monthly daily maximum
J52: A4 | K52: Jan
K53: Feb
K54: Mar
K55: Apr
K56: May
K57: Jun
K58: Jul
K59: Aug
K60: Sep
K61: Oct
K62: Nov
K63: Dec
K64: Annual | L64: =AVERAGE(L52:L63) ->  | M64: =MAX(M52:M63) -> 0 | N64: =AVERAGE(N52:N63) ->  | O64: =MAX(O52:O63) -> 0
J66: =+A6 -> 2021 | K66: mg/Nm3 | L66: Monthly 1/2 hourly mean | M66: Monthly 1/2 hourly maximum | N66: Monthly daily mean | O66: Monthly daily maximum
J67: A5 | K67: Jan
K68: Feb
K69: Mar
K70: Apr
K71: May
K72: Jun
K73: Jul
K74: Aug
K75: Sep
K76: Oct
K77: Nov
K78: Dec
K79: Annual | L79: =AVERAGE(L67:L78) ->  | M79: =MAX(M67:M78) -> 0 | N79: =AVERAGE(N67:N78) ->  | O79: =MAX(O67:O78) -> 0

Sheet HF
A1: =+'Cover Page'!$B$29 -> Annual Performance Report 2021 | E1: =+'Cover Page'!$B$33 -> Cornwall Energy Recovery Centre
A3: Monitoring of Hydrogen Fluoride (half hourly) | D3: Whole Installation | G3: See Notes in Cell Q3 | J3: =+A3 -> Monitoring of Hydrogen Fluoride (half hourly) | N3: Per Combustion Line | Q3: Notes:
Q4: User to add logic to complete Whole installation, Table A5:G18. From the data in Per Combustion Line, Table J6:O79, subject to No. of lines installed
A5: mg/Nm3 | B5: 1/2 Hourly Reference Periods | E5: Daily Reference Periods
A6: =+'Cover Page'!C39 -> 2021 | B6: 1/2 hourly CO ELV | C6: Monthly 1/2 hourly mean | D6: Highest 1/2 hourly maximum | E6: Daily CO ELV | F6: Monthly daily mean | G6: Highest daily maximum | J6: =+A6 -> 2021 | K6: mg/Nm3 | L6: Monthly 1/2 hourly mean | M6: Monthly 1/2 hourly maximum | N6: Monthly daily mean | O6: Monthly daily maximum
A7: Jan | B7: 4 | C7: =AVERAGE(L7,L22) -> 0 | D7: =MAX(M7,M22) -> 0 | E7: 1 | F7: =AVERAGE(N7,N22) -> 0 | G7: =MAX(O7,O22) -> 0 | J7: A1 | K7: Jan | L7: 0 | M7: 0 | N7: 0 | O7: 0
A8: Feb | B8: 4 | C8: =AVERAGE(L8,L23) -> 0 | D8: =MAX(M8,M23) -> 0 | E8: =+E7 -> 1 | F8: =AVERAGE(N8,N23) -> 0 | G8: =MAX(O8,O23) -> 0 | K8: Feb | L8: 0 | M8: 0 | N8: 0 | O8: 0
A9: Mar | B9: 4 | C9: 0 | D9: 0.4 | E9: =+E8 -> 1 | F9: 0 | G9: 0 | K9: Mar | L9: 0 | M9: 0.4 | N9: 0 | O9: 0 | Q9: Whole Installation table A5:G18:
A10: Apr | B10: 4 | C10: 0 | D10: 0.3 | E10: 1 | F10: 0 | G10: 0 | K10: Apr | L10: 0 | M10: 0.3 | N10: 0 | O10: 0 | Q10: Mean: for 1/2 hourly and daily periods calculate mean of values across all operational combustion lines for the month
A11: May | B11: =+B10 -> 4 | C11: 0 | D11: 0 | E11: 1 | F11: 0 | G11: 0 | K11: May | L11: 0 | M11: 0 | N11: 0 | O11: 0
A12: Jun | B12: 4 | C12: 0 | D12: 0.7 | E12: 1 | F12: 0 | G12: 0 | K12: Jun | L12: 0 | M12: 0.7 | N12: 0 | O12: 0
A13: Jul | B13: 4 | C13: 0 | D13: 0.4 | E13: 1 | F13: 0 | G13: 0.1 | K13: Jul | L13: 0 | M13: 0 | N13: 0 | O13: 0 | Q13: Maximum: for 1/2 hourly and daily periods use the highest value across all operational combustion lines for the month
A14: Aug | B14: 4 | C14: 0 | D14: 0.7 | E14: 1 | F14: 0 | G14: 0.4 | K14: Aug | L14: 0 | M14: 0.1 | N14: 0 | O14: 0
A15: Sep | B15: 4 | C15: 0 | D15: 0.6 | E15: 1 | F15: 0 | G15: 0.1 | K15: Sep | L15: 0 | M15: 0.3 | N15: 0 | O15: 0
A16: Oct | B16: 4 | C16: 0 | D16: 0.4 | E16: 1 | F16: 0 | G16: 0 | K16: Oct | L16: 0 | M16: 0.1 | N16: 0 | O16: 0
A17: Nov | B17: 4 | C17: 0 | D17: 1 | E17: 1 | F17: 0 | G17: 0 | K17: Nov | L17: 0 | M17: 0 | N17: 0 | O17: 0
A18: Dec | B18: 4 | C18: 0 | D18: 0.9 | E18: 1 | F18: 0 | G18: 0.7 | K18: Dec | L18: 0 | M18: 0.4 | N18: 0 | O18: 0
K19: Annual | L19: =AVERAGE(L7:L18) -> 0 | M19: =MAX(M7:M18) -> 0.7 | N19: =AVERAGE(N7:N18) -> 0 | O19: =MAX(O7:O18) -> 0
J21: =+A6 -> 2021 | K21: mg/Nm3 | L21: Monthly 1/2 hourly mean | M21: Monthly 1/2 hourly maximum | N21: Monthly daily mean | O21: Monthly daily maximum
J22: A2 | K22: Jan | L22: 0 | M22: 0 | N22: 0 | O22: 0
K23: Feb | L23: 0 | M23: 0 | N23: 0 | O23: 0
K24: Mar | L24: 0 | M24: 0 | N24: 0 | O24: 0
K25: Apr | L25: 0 | M25: 0 | N25: 0 | O25: 0
K26: May | L26: 0 | M26: 0 | N26: 0 | O26: 0
K27: Jun | L27: 0 | M27: 0.4 | N27: 0 | O27: 0
K28: Jul | L28: 0 | M28: 0.4 | N28: 0 | O28: 0.1
K29: Aug | L29: 0 | M29: 0.7 | N29: 0 | O29: 0.4
K30: Sep | L30: 0 | M30: 0.6 | N30: 0 | O30: 0.1
K31: Oct | L31: 0 | M31: 0.4 | N31: 0 | O31: 0
K32: Nov | L32: 0 | M32: 1 | N32: 0 | O32: 0
K33: Dec | L33: 0 | M33: 0.9 | N33: 0 | O33: 0.7
K34: Annual | L34: =AVERAGE(L22:L33) -> 0 | M34: =MAX(M22:M33) -> 1 | N34: =AVERAGE(N22:N33) -> 0 | O34: =MAX(O22:O33) -> 0.7
J36: =+A6 -> 2021 | K36: mg/Nm3 | L36: Monthly 1/2 hourly mean | M36: Monthly 1/2 hourly maximum | N36: Monthly daily mean | O36: Monthly daily maximum
J37: A3 | K37: Jan
K38: Feb
K39: Mar
K40: Apr
K41: May
K42: Jun
K43: Jul
K44: Aug
K45: Sep
K46: Oct
K47: Nov
A48: Comments : | K48: Dec
K49: Annual | L49: =AVERAGE(L37:L48) ->  | M49: =MAX(M37:M48) -> 0 | N49: =AVERAGE(N37:N48) ->  | O49: =MAX(O37:O48) -> 0
J51: =+A6 -> 2021 | K51: mg/Nm3 | L51: Monthly 1/2 hourly mean | M51: Monthly 1/2 hourly maximum | N51: Monthly daily mean | O51: Monthly daily maximum
J52: A4 | K52: Jan
K53: Feb
K54: Mar
K55: Apr
K56: May
K57: Jun
K58: Jul
K59: Aug
K60: Sep
K61: Oct
K62: Nov
K63: Dec
K64: Annual | L64: =AVERAGE(L52:L63) ->  | M64: =MAX(M52:M63) -> 0 | N64: =AVERAGE(N52:N63) ->  | O64: =MAX(O52:O63) -> 0
J66: =+A6 -> 2021 | K66: mg/Nm3 | L66: Monthly 1/2 hourly mean | M66: Monthly 1/2 hourly maximum | N66: Monthly daily mean | O66: Monthly daily maximum
J67: A5 | K67: Jan
K68: Feb
K69: Mar
K70: Apr
K71: May
K72: Jun
K73: Jul
K74: Aug
K75: Sep
K76: Oct
K77: Nov
K78: Dec
K79: Annual | L79: =AVERAGE(L67:L78) ->  | M79: =MAX(M67:M78) -> 0 | N79: =AVERAGE(N67:N78) ->  | O79: =MAX(O67:O78) -> 0

Sheet NH3
A1: =+'Cover Page'!$B$29 -> Annual Performance Report 2021 | E1: =+'Cover Page'!$B$33 -> Cornwall Energy Recovery Centre
A3: Monitoring of Ammnonia emissions | D3: Whole Installation | G3: See Notes in Cell Q3 | J3: =+A3 -> Monitoring of Ammnonia emissions | N3: Per Combustion Line | Q3: Notes:
Q4: User to add logic to complete Whole installation, Table A5:G18. From the data in Per Combustion Line, Table J6:O79, subject to No. of lines installed
A5: mg/Nm3 | B5: 1/2 Hourly Reference Periods | E5: Daily Reference Periods
A6: =+'Cover Page'!C39 -> 2021 | B6: 1/2 hourly NH3 ELV | C6: Monthly 1/2 hourly mean | D6: Highest 1/2 hourly maximum | E6: Daily NH3 ELV | F6: Monthly daily mean | G6: Highest daily maximum | J6: =+A6 -> 2021 | K6: mg/Nm3 | L6: Monthly 1/2 hourly mean | M6: Monthly 1/2 hourly maximum | N6: Monthly daily mean | O6: Monthly daily maximum
A7: Jan | B7: 0 | C7: =AVERAGE(L7,L22) -> 0.25 | D7: =MAX(M7,M22) -> 8.8 | E7: 10 | F7: =AVERAGE(N7,N22) -> 0.25 | G7: =MAX(O7,O22) -> 0.7 | J7: A1 | K7: Jan | L7: 0.1 | M7: 1.2 | N7: 0.1 | O7: 0.4
A8: Feb | B8: =+B7 -> 0 | C8: =AVERAGE(L8,L23) -> 0.25 | D8: =MAX(M8,M23) -> 2.5 | E8: =+E7 -> 10 | F8: =AVERAGE(N8,N23) -> 0.25 | G8: =MAX(O8,O23) -> 0.4 | K8: Feb | L8: 0.2 | M8: 0.6 | N8: 0.2 | O8: 0.4
A9: Mar | B9: =+B8 -> 0 | C9: 0.2 | D9: 3.9 | E9: =+E8 -> 10 | F9: 0.2 | G9: 0.6 | K9: Mar | L9: 0.1 | M9: 1.9 | N9: 0.1 | O9: 0.2 | Q9: Whole Installation table A5:G18:
A10: Apr | B10: 0 | C10: 0 | D10: 3 | E10: 10 | F10: 0 | G10: 1 | K10: Apr | L10: 0 | M10: 3 | N10: 0 | O10: 1 | Q10: Mean: for 1/2 hourly and daily periods calculate mean of values across all operational combustion lines for the month
A11: May | B11: 0 | C11: 0 | D11: 2 | E11: 10 | F11: 0 | G11: 1 | K11: May | L11: 0 | M11: 0.5 | N11: 0 | O11: 0
A12: Jun | B12: 0 | C12: 0.05 | D12: 14.9 | E12: 10 | F12: 0.05 | G12: 1.3 | K12: Jun | L12: 0 | M12: 0.2 | N12: 0 | O12: 0.1
A13: Jul | B13: 0 | C13: 0.1 | D13: 2.1 | E13: 10 | F13: 0.1 | G13: 0.5 | K13: Jul | L13: 0 | M13: 0.4 | N13: 0 | O13: 0.1 | Q13: Maximum: for 1/2 hourly and daily periods use the highest value across all operational combustion lines for the month
A14: Aug | B14: 0 | C14: 0.1 | D14: 4.3 | E14: 10 | F14: 0.1 | G14: 1.7 | K14: Aug | L14: 0.1 | M14: 0.4 | N14: 0.1 | O14: 0.1
A15: Sep | B15: 0 | C15: 0 | D15: 0.2 | E15: 10 | F15: 0 | G15: 0.1 | K15: Sep | L15: 0 | M15: 0.2 | N15: 0 | O15: 0.1
A16: Oct | B16: 0 | C16: 0.2 | D16: 0.2 | E16: 10 | F16: 0.05 | G16: 0.1 | K16: Oct | L16: 0.1 | M16: 0.2 | N16: 0.1 | O16: 0.1
A17: Nov | B17: 0 | C17: 0 | D17: 1 | E17: 10 | F17: 0 | G17: 0 | K17: Nov | L17: 0 | M17: 0 | N17: 0 | O17: 0
A18: Dec | B18: 0 | C18: 0 | D18: 0.9 | E18: 10 | F18: 0 | G18: 0.2 | K18: Dec | L18: 0 | M18: 0.5 | N18: 0 | O18: 0.2
K19: Annual | L19: =AVERAGE(L7:L18) -> 0.05 | M19: =MAX(M7:M18) -> 3 | N19: =AVERAGE(N7:N18) -> 0.05 | O19: =MAX(O7:O18) -> 1
J21: =+A6 -> 2021 | K21: mg/Nm3 | L21: Monthly 1/2 hourly mean | M21: Monthly 1/2 hourly maximum | N21: Monthly daily mean | O21: Monthly daily maximum
J22: A2 | K22: Jan | L22: 0.4 | M22: 8.8 | N22: 0.4 | O22: 0.7
K23: Feb | L23: 0.3 | M23: 2.5 | N23: 0.3 | O23: 0.4
K24: Mar | L24: 0.3 | M24: 3.9 | N24: 0.3 | O24: 0.6
K25: Apr | L25: 0 | M25: 2 | N25: 0 | O25: 0
K26: May | L26: 0 | M26: 2 | N26: 0 | O26: 1
K27: Jun | L27: 0.1 | M27: 14.9 | N27: 0.1 | O27: 1.3
K28: Jul | L28: 0.2 | M28: 2.1 | N28: 0.2 | O28: 0.5
K29: Aug | L29: 0.1 | M29: 4.3 | N29: 0.1 | O29: 1.7
K30: Sep | L30: 0 | M30: 0.2 | N30: 0 | O30: 0
K31: Oct | L31: 0.3 | M31: 0 | N31: 0 | O31: 0
K32: Nov | L32: 0 | M32: 1 | N32: 0 | O32: 0
K33: Dec | L33: 0 | M33: 0.9 | N33: 0 | O33: 0
K34: Annual | L34: =AVERAGE(L22:L33) -> 0.1416666667 | M34: =MAX(M22:M33) -> 14.9 | N34: =AVERAGE(N22:N33) -> 0.1166666667 | O34: =MAX(O22:O33) -> 1.7
J36: =+A6 -> 2021 | K36: mg/Nm3 | L36: Monthly 1/2 hourly mean | M36: Monthly 1/2 hourly maximum | N36: Monthly daily mean | O36: Monthly daily maximum
J37: A3 | K37: Jan
K38: Feb
K39: Mar
K40: Apr
K41: May
K42: Jun
K43: Jul
K44: Aug
K45: Sep
K46: Oct
K47: Nov
A48: Comments : | K48: Dec
A49: An indicated ELV value of zero in the table above means that no ammonia limit is set in the permit. | K49: Annual | L49: =AVERAGE(L37:L48) ->  | M49: =MAX(M37:M48) -> 0 | N49: =AVERAGE(N37:N48) ->  | O49: =MAX(O37:O48) -> 0
J51: =+A6 -> 2021 | K51: mg/Nm3 | L51: Monthly 1/2 hourly mean | M51: Monthly 1/2 hourly maximum | N51: Monthly daily mean | O51: Monthly daily maximum
J52: A4 | K52: Jan
K53: Feb
K54: Mar
K55: Apr
K56: May
K57: Jun
K58: Jul
K59: Aug
K60: Sep
K61: Oct
K62: Nov
K63: Dec
K64: Annual | L64: =AVERAGE(L52:L63) ->  | M64: =MAX(M52:M63) -> 0 | N64: =AVERAGE(N52:N63) ->  | O64: =MAX(O52:O63) -> 0
J66: =+A6 -> 2021 | K66: mg/Nm3 | L66: Monthly 1/2 hourly mean | M66: Monthly 1/2 hourly maximum | N66: Monthly daily mean | O66: Monthly daily maximum
J67: A5 | K67: Jan
K68: Feb
K69: Mar
K70: Apr
K71: May
K72: Jun
K73: Jul
K74: Aug
K75: Sep
K76: Oct
K77: Nov
K78: Dec
K79: Annual | L79: =AVERAGE(L67:L78) ->  | M79: =MAX(M67:M78) -> 0 | N79: =AVERAGE(N67:N78) ->  | O79: =MAX(O67:O78) -> 0
